Workbook

Sheet Skema 1
A1: Region Sjælland, somatiske sygehuse.
B2: Skema 1: Udgifter og indtægter på sygehusene/enhederne, eksklusiv omkostningssted 0001, Fælleskonto. (1.000 kr.)
A5: Sygehus | C5: 2023 | D5: 2022 | E5: 2021 | F5: 2020 | G5: Δ2022-2023 | H5: % afvigelse | I5: Begrundelse
A6: Sjællands Universitetshospital
A7: Sjællands Universitetshospital | B7: Hovedart 1: Lønninger | C7: 3173701.029 | D7: 3080401.556 | E7: =2753557.12516-48295.90261 -> 2705261.223 | F7: 2541739.092 | G7: =IF(ISERROR(C7- D7)=TRUE,"",C7 - D7) -> 93299.47322 | H7: =IF(ISERROR((((C7- D7)/D7)*100)=TRUE),"",IF((((C7- D7)/D7)*100)<-7,FIXED(((C7- D7)/D7)*100, 1,TRUE) &"%" & "▼",IF((((C7- D7)/D7)*100)>7,FIXED(((C7- D7)/D7)*100, 1,TRUE) &"%" &"▲",FIXED(((C7- D7)/D7)*100, 1,TRUE)&"%"))) -> 3,0%
A8: Sjællands Universitetshospital | B8: Hovedart 2: Varekøb | C8: 594974.0124 | D8: 550804.5353 | E8: 541201.4051 | F8: 631843.6428 | G8: 44169.47712 | H8: 8,0%▲ | I8: Forventeligt med høj inflation - øvrige lægelige artikler er steget meget
A9: Sjællands Universitetshospital | B9: Hovedart 4: Tjenesteydelser m.v. | C9: 552670.4476 | D9: 454774.1482 | E9: 378389.1268 | F9: 303088.1035 | G9: 97896.29935 | H9: 21,5%▲ | I9: Store udgifter til drift og vedligeholdelse - samt overførsel af projekter
A10: Sjællands Universitetshospital | B10: Hovedart 5: Tilskud og overførsler | C10: 1874.83439 | D10: 1826.78971 | E10: 1049.56904 | F10: 1109.3633 | G10: 48.04468 | H10: 2,6%
A11: Sjællands Universitetshospital | B11: Hovedart 6: Finansudgifter | C11: 500 | D11: 0 | E11: 0 | F11: -798.85358 | G11: 500 | I11: Ekstern projekt
A12: Sjællands Universitetshospital | B12: Hovedart 7: Indtægter | C12: -301200.6639 | D12: -208773.686 | E12: -180307.4505 | F12: -146053.4223 | G12: -92426.97795 | H12: 44,3%▲ | I12: Øget indtægter til projekter
A13: Sjællands Universitetshospital | B13: Hovedart 8: Finansindtægter | C13: 0 | D13: 0 | E13: 0 | F13: 0 | G13: 0
A14: Sjællands Universitetshospital | B14: Hovedart 9: Interne udgifter og indtægter | C14: 920414.2763 | D14: 942844.4284 | E14: =874632.75631+48295.90261 -> 922928.6589 | F14: 934799.7862 | G14: -22430.15209 | H14: -2,4%
A15: Sjællands Universitetshospital | B15: I alt | C15: =SUMIFS((C7:C14),(A7:A14),A15) -> 4942933.936 | D15: =SUMIFS((D7:D14),(A7:A14),A15) -> 4821877.772 | E15: =SUMIFS((E7:E14),(A7:A14),A15) -> 4368522.532 | F15: =SUMIFS((F7:F14),(A7:A14),A15) -> 4265727.712 | G15: 121056.1643 | H15: 2,5%
A16: Holbæk Sygehus | G16: 0
A17: Holbæk Sygehus | B17: Hovedart 1: Lønninger | C17: 1002045.476 | D17: 1005716.85 | E17: 962066.3139 | F17: 910767.6987 | G17: -3671.37376 | H17: -0,4%
A18: Holbæk Sygehus | B18: Hovedart 2: Varekøb | C18: 132139.3243 | D18: 154467.3175 | E18: 139532.8379 | F18: 136409.638 | G18: -22327.99317 | H18: -14,5%▼ | I18: Tilbage på 2021-niveau
A19: Holbæk Sygehus | B19: Hovedart 4: Tjenesteydelser m.v. | C19: 68918.60444 | D19: 108581.6595 | E19: 97675.57574 | F19: 90752.19552 | G19: -39663.05501 | H19: -36,5%▼ | I19: Reduktion i interneprojekter samt ophør med brug af eksterne vikar mm
A20: Holbæk Sygehus | B20: Hovedart 5: Tilskud og overførsler | C20: 1196.05005 | D20: 1004.18771 | E20: 802.44637 | F20: 831.37576 | G20: 191.86234 | H20: 19,1%▲ | I20: Refusion til patienter (strøm m.m.) er steget, pga. stigende elpriser
A21: Holbæk Sygehus | B21: Hovedart 6: Finansudgifter | C21: -24.22 | D21: 0 | E21: 0 | F21: -394.75545 | G21: -24.22
A22: Holbæk Sygehus | B22: Hovedart 7: Indtægter | C22: -31824.89761 | D22: -41997.30664 | E22: -29781.59995 | F22: -27166.286 | G22: 10172.40903 | H22: -24,2%▼ | I22: Sanering i interneprojekter i forbindelse med regnskabafslutning
A23: Holbæk Sygehus | B23: Hovedart 8: Finansindtægter | C23: -478.398 | D23: 0 | E23: 0 | F23: 0 | G23: -478.398
A24: Holbæk Sygehus | B24: Hovedart 9: Interne udgifter og indtægter | C24: 115032.4127 | D24: 115534.8122 | E24: 111182.0833 | F24: 109531.6883 | G24: -502.39944 | H24: -0,4%
A25: Holbæk Sygehus | B25: I alt | C25: =SUMIFS((C7:C24),(A7:A24),A25) -> 1287004.352 | D25: =SUMIFS((D7:D24),(A7:A24),A25) -> 1343307.52 | E25: =SUMIFS((E7:E24),(A7:A24),A25) -> 1281477.657 | F25: =SUMIFS((F7:F24),(A7:A24),A25) -> 1220731.555 | G25: -56303.16801 | H25: -4,2%
A26: Næstved, Slagelse og Ringsted Sygehuse | G26: 0
A27: Næstved, Slagelse og Ringsted Sygehuse | B27: Hovedart 1: Lønninger | C27: 1566139.395 | D27: 1536399.035 | E27: 1549017 | F27: 1497032.347 | G27: 29740.36046 | H27: 1,9%
A28: Næstved, Slagelse og Ringsted Sygehuse | B28: Hovedart 2: Varekøb | C28: 230381.835 | D28: 237033.5689 | E28: 262034 | F28: 257803.8255 | G28: -6651.7339 | H28: -2,8%
A29: Næstved, Slagelse og Ringsted Sygehuse | B29: Hovedart 4: Tjenesteydelser m.v. | C29: 258335.564 | D29: 265685.4639 | E29: 295395 | F29: 236139.0358 | G29: -7349.89985 | H29: -2,8%
A30: Næstved, Slagelse og Ringsted Sygehuse | B30: Hovedart 5: Tilskud og overførsler | C30: 726.84687 | D30: 680.54123 | E30: 809 | F30: 691.05368 | G30: 46.30564 | H30: 6,8%
A31: Næstved, Slagelse og Ringsted Sygehuse | B31: Hovedart 6: Finansudgifter | C31: 0 | D31: 0 | E31: -2992 | F31: 2411.63355 | G31: 0
A32: Næstved, Slagelse og Ringsted Sygehuse | B32: Hovedart 7: Indtægter | C32: -69827.217 | D32: -32819.72706 | E32: -77647 | F32: -57874.62304 | G32: -37007.48994 | H32: 112,8%▲ | I32: Sædvanlig energirefusion fra SKAT blev ikke modtaget i 2022.
A33: Næstved, Slagelse og Ringsted Sygehuse | B33: Hovedart 8: Finansindtægter | C33: 0 | D33: 0 | E33: 0 | G33: 0
A34: Næstved, Slagelse og Ringsted Sygehuse | B34: Hovedart 9: Interne udgifter og indtægter | C34: 111849.195 | D34: 141629.6056 | E34: 144166 | F34: 141860.7911 | G34: -29780.41058 | H34: -21,0%▼ | I34: Forklaringen findes i en ændret metode, der findes derfor ikke en nævneværdig begrundelse.
A35: Næstved, Slagelse og Ringsted Sygehuse | B35: I alt | C35: =SUMIFS((C7:C34),(A7:A34),A35) -> 2097605.619 | D35: =SUMIFS((D7:D34),(A7:A34),A35) -> 2148608.487 | E35: =SUMIFS((E7:E34),(A7:A34),A35) -> 2170782 | F35: =SUMIFS((F7:F34),(A7:A34),A35) -> 2078064.063 | G35: -51002.86817 | H35: -2,4%
A36: Nykøbing F. Sygehus | G36: 0
A37: Nykøbing F. Sygehus | B37: Hovedart 1: Lønninger | C37: 701894.03 | D37: 680398.619 | E37: 697686.9217 | F37: =673668147.79/1000 -> 673668.1478 | G37: 21495.411 | H37: 3,2%
A38: Nykøbing F. Sygehus | B38: Hovedart 2: Varekøb | C38: 84683.265 | D38: 89569.75 | E38: 85078.3038 | F38: =89450161.66/1000 -> 89450.16166 | G38: -4886.485 | H38: -5,5%
A39: Nykøbing F. Sygehus | B39: Hovedart 4: Tjenesteydelser m.v. | C39: 101440.116 | D39: 112257.225 | E39: 94845.53489 | F39: =78024031.01/1000 -> 78024.03101 | G39: =IF(ISERROR(C39- D39)=TRUE,"",C39 - D39) -> -10817.109 | H39: =IF(ISERROR((((C39- D39)/D39)*100)=TRUE),"",IF((((C39- D39)/D39)*100)<-7,FIXED(((C39- D39)/D39)*100, 1,TRUE) &"%" & "▼",IF((((C39- D39)/D39)*100)>7,FIXED(((C39- D39)/D39)*100, 1,TRUE) &"%" &"▲",FIXED(((C39- D39)/D39)*100, 1,TRUE)&"%"))) -> -9,6%▼ | I39: Vikarer
A40: Nykøbing F. Sygehus | B40: Hovedart 5: Tilskud og overførsler | C40: 972.696 | D40: 805 | E40: 598.03931 | F40: =637459.65/1000 -> 637.45965 | G40: 167.696 | H40: 20,8%▲ | I40: Øgede strømpriser inkl. transport af el.
A41: Nykøbing F. Sygehus | B41: Hovedart 6: Finansudgifter | D41: 0 | E41: 0 | F41: =-556217.29/1000 -> -556.21729 | G41: 0
A42: Nykøbing F. Sygehus | B42: Hovedart 7: Indtægter | C42: -19568.504 | D42: -16905.199 | E42: -20996.73166 | F42: =-23525707.67/1000 -> -23525.70767 | G42: -2663.305 | H42: 15,8%▲ | I42: Skyldes bl.a. huslejestigninger
A43: Nykøbing F. Sygehus | B43: Hovedart 8: Finansindtægter | D43: 0 | G43: 0
A44: Nykøbing F. Sygehus | B44: Hovedart 9: Interne udgifter og indtægter | C44: 66477.007 | D44: 55783.414 | E44: 58149.26815 | F44: =57186149.05/1000 -> 57186.14905 | G44: 10693.593 | H44: 19,2%▲ | I44: Internt vikarkorps
A45: Nykøbing F. Sygehus | B45: I alt | C45: =SUMIFS((C7:C44),(A7:A44),A45) -> 935898.61 | D45: =SUMIFS((D7:D44),(A7:A44),A45) -> 921908.809 | E45: =SUMIFS((E7:E44),(A7:A44),A45) -> 915361.3362 | F45: =SUMIFS((F7:F44),(A7:A44),A45) -> 874884.0242 | G45: 13989.801 | H45: 1,5%
A46: Sygehus Nord | G46: 0
A47: Sygehus Nord | B47: Hovedart 1: Lønninger | G47: 0
A48: Sygehus Nord | B48: Hovedart 2: Varekøb | G48: 0
A49: Sygehus Nord | B49: Hovedart 4: Tjenesteydelser m.v. | G49: 0
A50: Sygehus Nord | B50: Hovedart 5: Tilskud og overførsler | G50: 0
A51: Sygehus Nord | B51: Hovedart 6: Finansudgifter | G51: 0
A52: Sygehus Nord | B52: Hovedart 7: Indtægter | G52: 0
A53: Sygehus Nord | B53: Hovedart 8: Finansindtægter | G53: 0
A54: Sygehus Nord | B54: Hovedart 9: Interne udgifter og indtægter | G54: 0
A55: Sygehus Nord | B55: I alt | C55: =SUMIFS((C7:C54),(A7:A54),A55) -> 0 | D55: =SUMIFS((D7:D54),(A7:A54),A55) -> 0 | E55: =SUMIFS((E7:E54),(A7:A54),A55) -> 0 | F55: =SUMIFS((F7:F54),(A7:A54),A55) -> 0 | G55: 0
A56: Sygehus Syd | G56: 0
A57: Sygehus Syd | B57: Hovedart 1: Lønninger | G57: 0
A58: Sygehus Syd | B58: Hovedart 2: Varekøb | G58: 0
A59: Sygehus Syd | B59: Hovedart 4: Tjenesteydelser m.v. | G59: 0
A60: Sygehus Syd | B60: Hovedart 5: Tilskud og overførsler | G60: 0
A61: Sygehus Syd | B61: Hovedart 6: Finansudgifter | G61: 0
A62: Sygehus Syd | B62: Hovedart 7: Indtægter | G62: 0
A63: Sygehus Syd | B63: Hovedart 8: Finansindtægter | G63: 0
A64: Sygehus Syd | B64: Hovedart 9: Interne udgifter og indtægter | G64: 0
A65: Sygehus Syd | B65: I alt | C65: =SUMIFS((C7:C64),(A7:A64),A65) -> 0 | D65: =SUMIFS((D7:D64),(A7:A64),A65) -> 0 | E65: =SUMIFS((E7:E64),(A7:A64),A65) -> 0 | F65: =SUMIFS((F7:F64),(A7:A64),A65) -> 0 | G65: 0
A66: Garantiklinikken | G66: 0
A67: Garantiklinikken | B67: Hovedart 1: Lønninger | G67: 0
A68: Garantiklinikken | B68: Hovedart 2: Varekøb | G68: 0
A69: Garantiklinikken | B69: Hovedart 4: Tjenesteydelser m.v. | G69: 0
A70: Garantiklinikken | B70: Hovedart 5: Tilskud og overførsler | G70: 0
A71: Garantiklinikken | B71: Hovedart 6: Finansudgifter | G71: =IF(ISERROR(C71- D71)=TRUE,"",C71 - D71) -> 0 | H71: =IF(ISERROR((((C71- D71)/D71)*100)=TRUE),"",IF((((C71- D71)/D71)*100)<-7,FIXED(((C71- D71)/D71)*100, 1,TRUE) &"%" & "▼",IF((((C71- D71)/D71)*100)>7,FIXED(((C71- D71)/D71)*100, 1,TRUE) &"%" &"▲",FIXED(((C71- D71)/D71)*100, 1,TRUE)&"%"))) -> 
A72: Garantiklinikken | B72: Hovedart 7: Indtægter | G72: 0
A73: Garantiklinikken | B73: Hovedart 8: Finansindtægter | G73: 0
A74: Garantiklinikken | B74: Hovedart 9: Interne udgifter og indtægter | G74: 0
A75: Garantiklinikken | B75: I alt | C75: =SUMIFS((C7:C74),(A7:A74),A75) -> 0 | D75: =SUMIFS((D7:D74),(A7:A74),A75) -> 0 | E75: =SUMIFS((E7:E74),(A7:A74),A75) -> 0 | F75: =SUMIFS((F7:F74),(A7:A74),A75) -> 0 | G75: 0
A76: Øvrige i Region Sjælland | G76: 0
A77: Øvrige i Region Sjælland | B77: Hovedart 1: Lønninger | G77: 0
A78: Øvrige i Region Sjælland | B78: Hovedart 2: Varekøb | G78: 0
A79: Øvrige i Region Sjælland | B79: Hovedart 4: Tjenesteydelser m.v. | G79: 0
A80: Øvrige i Region Sjælland | B80: Hovedart 5: Tilskud og overførsler | G80: 0
A81: Øvrige i Region Sjælland | B81: Hovedart 6: Finansudgifter | G81: 0
A82: Øvrige i Region Sjælland | B82: Hovedart 7: Indtægter | G82: 0
A83: Øvrige i Region Sjælland | B83: Hovedart 8: Finansindtægter | G83: 0
A84: Øvrige i Region Sjælland | B84: Hovedart 9: Interne udgifter og indtægter | G84: 0
A85: Øvrige i Region Sjælland | B85: I alt | C85: =SUMIFS((C7:C84),(A7:A84),A85) -> 0 | D85: =SUMIFS((D7:D84),(A7:A84),A85) -> 0 | E85: =SUMIFS((E7:E84),(A7:A84),A85) -> 0 | F85: =SUMIFS((F7:F84),(A7:A84),A85) -> 0 | G85: 0
A86: Ikke fordelte udgifter og indtægter | G86: 0
A87: Ikke fordelte udgifter og indtægter | B87: Hovedart 1: Lønninger | G87: 0
A88: Ikke fordelte udgifter og indtægter | B88: Hovedart 2: Varekøb | G88: 0
A89: Ikke fordelte udgifter og indtægter | B89: Hovedart 4: Tjenesteydelser m.v. | G89: 0
A90: Ikke fordelte udgifter og indtægter | B90: Hovedart 5: Tilskud og overførsler | G90: 0
A91: Ikke fordelte udgifter og indtægter | B91: Hovedart 6: Finansudgifter | G91: 0
A92: Ikke fordelte udgifter og indtægter | B92: Hovedart 7: Indtægter | G92: 0
A93: Ikke fordelte udgifter og indtægter | B93: Hovedart 8: Finansindtægter | G93: 0
A94: Ikke fordelte udgifter og indtægter | B94: Hovedart 9: Interne udgifter og indtægter | G94: 0
A95: Ikke fordelte udgifter og indtægter | B95: I alt | C95: =SUMIFS((C7:C94),(A7:A94),A95) -> 0 | D95: =SUMIFS((D7:D94),(A7:A94),A95) -> 0 | E95: =SUMIFS((E7:E94),(A7:A94),A95) -> 0 | F95: =SUMIFS((F7:F94),(A7:A94),A95) -> 0 | G95: 0

Sheet Skema 2
A1: Region Sjælland, somatiske sygehuse.
B2: Skema 2: Fællesudgifter og -indtægter vedrørende sygehusene. (1.000 kr.)
A5: Sygehus | C5: 2023 | D5: 2022 | E5: 2021 | F5: 2020 | G5: Δ2022-2023 | H5: % afvigelse | I5: Begrundelse
A6: Sjællands Universitetshospital
A7: Sjællands Universitetshospital | B7: Hovedart 1: Lønninger | C7: =151184224.817591/1000 -> 151184.2248 | D7: 126974.2719 | E7: 139625.6874 | F7: 128775.0131 | G7: =IF(ISERROR(C7- D7)=TRUE,"",C7 - D7) -> 24209.95289 | H7: =IF(ISERROR((((C7- D7)/D7)*100)=TRUE),"",IF((((C7- D7)/D7)*100)<-7,FIXED(((C7- D7)/D7)*100, 1,TRUE) &"%" & "▼",IF((((C7- D7)/D7)*100)>7,FIXED(((C7- D7)/D7)*100, 1,TRUE) &"%" &"▲",FIXED(((C7- D7)/D7)*100, 1,TRUE)&"%"))) -> 19,1%▲ | I7: Se note 1
A8: Sjællands Universitetshospital | B8: Hovedart 2: Varekøb | C8: 490933.9437 | D8: 473439.2633 | E8: 422847.9983 | F8: 426154.6634 | G8: 17494.68034 | H8: 3,7%
A9: Sjællands Universitetshospital | B9: Hovedart 4: Tjenesteydelser m.v. | C9: 194379.5264 | D9: 168956.6503 | E9: 162524.701 | F9: 159767.8212 | G9: 25422.87609 | H9: 15,0%▲ | I9: Se note 2
A10: Sjællands Universitetshospital | B10: Hovedart 5: Tilskud og overførsler | E10: 436.15579 | F10: 437.2338702 | G10: 0
A11: Sjællands Universitetshospital | B11: Hovedart 6: Finansudgifter | E11: 0 | F11: -58.4899325 | G11: 0
A12: Sjællands Universitetshospital | B12: Hovedart 7: Indtægter | C12: -53486.2114 | D12: -52650.76288 | E12: -52907.47747 | F12: -43896.57104 | G12: -835.448513 | H12: 1,6%
A13: Sjællands Universitetshospital | B13: Hovedart 8: Finansindtægter | C13: -199.0982164 | G13: -199.0982164
A14: Sjællands Universitetshospital | B14: Hovedart 9: Interne udgifter og indtægter | C14: -534466.4441 | D14: -512698.3772 | E14: -486821.8422 | F14: -489779.2329 | G14: -21768.06694 | H14: 4,2%
A15: Sjællands Universitetshospital | B15: I alt | C15: =SUMIFS((C7:C14),(A7:A14),A15) -> 248345.9411 | D15: =SUMIFS((D7:D14),(A7:A14),A15) -> 204021.0455 | E15: =SUMIFS((E7:E14),(A7:A14),A15) -> 185705.2227 | F15: =SUMIFS((F7:F14),(A7:A14),A15) -> 181400.4377 | G15: 44324.89565 | H15: 21,7%▲
A16: Holbæk Sygehus | G16: 0
A17: Holbæk Sygehus | B17: Hovedart 1: Lønninger | C17: 49585.43432 | D17: 45852.77134 | E17: 53495.30149 | F17: 49043.60385 | G17: 3732.662981 | H17: 8,1%▲ | I17: Se note 1
A18: Holbæk Sygehus | B18: Hovedart 2: Varekøb | C18: 146243.3598 | D18: 153377.7276 | E18: 147451.0665 | F18: 145717.999 | G18: -7134.367849 | H18: -4,7%
A19: Holbæk Sygehus | B19: Hovedart 4: Tjenesteydelser m.v. | C19: 64580.40128 | D19: 62510.36243 | E19: 62238.96211 | F19: 57116.65734 | G19: 2070.038856 | H19: 3,3%
A20: Holbæk Sygehus | B20: Hovedart 5: Tilskud og overførsler | E20: 145.54546 | F20: 143.3118163 | G20: 0
A21: Holbæk Sygehus | B21: Hovedart 6: Finansudgifter | F21: -19.1712011 | G21: 0
A22: Holbæk Sygehus | B22: Hovedart 7: Indtægter | C22: -16769.62497 | D22: -17679.91306 | E22: -18867.4178 | F22: -15543.99738 | G22: 910.2880839 | H22: -5,1%
A23: Holbæk Sygehus | B23: Hovedart 8: Finansindtægter | C23: -55.76946878 | G23: -55.76946878
A24: Holbæk Sygehus | B24: Hovedart 9: Interne udgifter og indtægter | C24: -168781.8262 | D24: -173779.0632 | E24: -177005.1523 | F24: -174320.6881 | G24: 4997.236963 | H24: -2,9%
A25: Holbæk Sygehus | B25: I alt | C25: =SUMIFS((C7:C24),(A7:A24),A25) -> 74801.97472 | D25: =SUMIFS((D7:D24),(A7:A24),A25) -> 70281.88516 | E25: =SUMIFS((E7:E24),(A7:A24),A25) -> 67458.30542 | F25: =SUMIFS((F7:F24),(A7:A24),A25) -> 62137.71535 | G25: 4520.089567 | H25: 6,4%
A26: Næstved, Slagelse og Ringsted Sygehuse | G26: 0
A27: Næstved, Slagelse og Ringsted Sygehuse | B27: Hovedart 1: Lønninger | C27: 82261.08136 | D27: 74903.99842 | E27: 88248.35692 | F27: 82373.90576 | G27: 7357.082946 | H27: 9,8%▲ | I27: Se note 1
A28: Næstved, Slagelse og Ringsted Sygehuse | B28: Hovedart 2: Varekøb | C28: 237423.6472 | D28: 240318.9279 | E28: 244608.1544 | F28: 245192.9494 | G28: -2895.280659 | H28: -1,2%
A29: Næstved, Slagelse og Ringsted Sygehuse | B29: Hovedart 4: Tjenesteydelser m.v. | C29: 114057.4459 | D29: 111333.9464 | E29: 109887.8283 | F29: 100753.4269 | G29: 2723.499585 | H29: 2,4%
A30: Næstved, Slagelse og Ringsted Sygehuse | B30: Hovedart 5: Tilskud og overførsler | E30: 248.1298 | F30: 246.4336205 | G30: 0
A31: Næstved, Slagelse og Ringsted Sygehuse | B31: Hovedart 6: Finansudgifter | F31: -32.9660779 | G31: 0
A32: Næstved, Slagelse og Ringsted Sygehuse | B32: Hovedart 7: Indtægter | C32: -26505.89668 | D32: -27382.41562 | E32: -30867.70076 | F32: -25595.58215 | G32: 876.5189421 | H32: -3,2%
A33: Næstved, Slagelse og Ringsted Sygehuse | B33: Hovedart 8: Finansindtægter | C33: -92.26470066 | G33: -92.26470066
A34: Næstved, Slagelse og Ringsted Sygehuse | B34: Hovedart 9: Interne udgifter og indtægter | C34: -270463.298 | D34: -271688.0148 | E34: -286458.7153 | F34: -288670.2232 | G34: 1224.716861 | H34: -0,5%
A35: Næstved, Slagelse og Ringsted Sygehuse | B35: I alt | C35: =SUMIFS((C7:C34),(A7:A34),A35) -> 136680.7152 | D35: =SUMIFS((D7:D34),(A7:A34),A35) -> 127486.4422 | E35: =SUMIFS((E7:E34),(A7:A34),A35) -> 125666.0534 | F35: =SUMIFS((F7:F34),(A7:A34),A35) -> 114267.9443 | G35: 9194.272975 | H35: 7,2%▲
A36: Nykøbing F. Sygehus | G36: 0
A37: Nykøbing F. Sygehus | B37: Hovedart 1: Lønninger | C37: 36554.96494 | D37: 32131.89198 | E37: 38307.09522 | F37: 36102.17374 | G37: 4423.07296 | H37: 13,8%▲ | I37: Se note 1
A38: Nykøbing F. Sygehus | B38: Hovedart 2: Varekøb | C38: 107026.8477 | D38: 105010.2265 | E38: 105440.5097 | F38: 106377.9811 | G38: 2016.621231 | H38: 1,9%
A39: Nykøbing F. Sygehus | B39: Hovedart 4: Tjenesteydelser m.v. | C39: 48411.69296 | D39: 45424.51257 | E39: 45013.79215 | F39: 41355.93129 | G39: =IF(ISERROR(C39- D39)=TRUE,"",C39 - D39) -> 2987.180388 | H39: =IF(ISERROR((((C39- D39)/D39)*100)=TRUE),"",IF((((C39- D39)/D39)*100)<-7,FIXED(((C39- D39)/D39)*100, 1,TRUE) &"%" & "▼",IF((((C39- D39)/D39)*100)>7,FIXED(((C39- D39)/D39)*100, 1,TRUE) &"%" &"▲",FIXED(((C39- D39)/D39)*100, 1,TRUE)&"%"))) -> 6,6%
A40: Nykøbing F. Sygehus | B40: Hovedart 5: Tilskud og overførsler | E40: 104.61055 | F40: 105.4068158 | G40: 0
A41: Nykøbing F. Sygehus | B41: Hovedart 6: Finansudgifter | F41: -14.1005488 | G41: 0
A42: Nykøbing F. Sygehus | B42: Hovedart 7: Indtægter | C42: -12033.30198 | D42: -11932.84364 | E42: -13310.56179 | F42: -11175.73077 | G42: -100.4583438 | H42: 0,8%
A43: Nykøbing F. Sygehus | B43: Hovedart 8: Finansindtægter | C43: -40.9844669 | G43: -40.9844669
A44: Nykøbing F. Sygehus | B44: Hovedart 9: Interne udgifter og indtægter | C44: -123226.2322 | D44: -119761.7802 | E44: -125974.0011 | F44: -127919.6481 | G44: -3464.451935 | H44: 2,9%
A45: Nykøbing F. Sygehus | B45: I alt | C45: =SUMIFS((C7:C44),(A7:A44),A45) -> 56692.98695 | D45: =SUMIFS((D7:D44),(A7:A44),A45) -> 50872.00711 | E45: =SUMIFS((E7:E44),(A7:A44),A45) -> 49581.4447 | F45: =SUMIFS((F7:F44),(A7:A44),A45) -> 44832.01343 | G45: 5820.979833 | H45: 11,4%▲
A46: Sygehus Nord | G46: 0
A47: Sygehus Nord | B47: Hovedart 1: Lønninger | G47: 0
A48: Sygehus Nord | B48: Hovedart 2: Varekøb | G48: 0
A49: Sygehus Nord | B49: Hovedart 4: Tjenesteydelser m.v. | G49: 0
A50: Sygehus Nord | B50: Hovedart 5: Tilskud og overførsler | G50: 0
A51: Sygehus Nord | B51: Hovedart 6: Finansudgifter | G51: 0
A52: Sygehus Nord | B52: Hovedart 7: Indtægter | G52: 0
A53: Sygehus Nord | B53: Hovedart 8: Finansindtægter | G53: 0
A54: Sygehus Nord | B54: Hovedart 9: Interne udgifter og indtægter | G54: 0
A55: Sygehus Nord | B55: I alt | C55: =SUMIFS((C7:C54),(A7:A54),A55) -> 0 | D55: =SUMIFS((D7:D54),(A7:A54),A55) -> 0 | E55: =SUMIFS((E7:E54),(A7:A54),A55) -> 0 | F55: =SUMIFS((F7:F54),(A7:A54),A55) -> 0 | G55: 0
A56: Sygehus Syd | G56: 0
A57: Sygehus Syd | B57: Hovedart 1: Lønninger | G57: 0
A58: Sygehus Syd | B58: Hovedart 2: Varekøb | G58: 0
A59: Sygehus Syd | B59: Hovedart 4: Tjenesteydelser m.v. | G59: 0
A60: Sygehus Syd | B60: Hovedart 5: Tilskud og overførsler | G60: 0
A61: Sygehus Syd | B61: Hovedart 6: Finansudgifter | G61: 0
A62: Sygehus Syd | B62: Hovedart 7: Indtægter | G62: 0
A63: Sygehus Syd | B63: Hovedart 8: Finansindtægter | G63: 0
A64: Sygehus Syd | B64: Hovedart 9: Interne udgifter og indtægter | G64: 0
A65: Sygehus Syd | B65: I alt | C65: =SUMIFS((C7:C64),(A7:A64),A65) -> 0 | D65: =SUMIFS((D7:D64),(A7:A64),A65) -> 0 | E65: =SUMIFS((E7:E64),(A7:A64),A65) -> 0 | F65: =SUMIFS((F7:F64),(A7:A64),A65) -> 0 | G65: 0
A66: Garantiklinikken | G66: 0
A67: Garantiklinikken | B67: Hovedart 1: Lønninger | G67: 0
A68: Garantiklinikken | B68: Hovedart 2: Varekøb | G68: 0
A69: Garantiklinikken | B69: Hovedart 4: Tjenesteydelser m.v. | G69: 0
A70: Garantiklinikken | B70: Hovedart 5: Tilskud og overførsler | G70: 0
A71: Garantiklinikken | B71: Hovedart 6: Finansudgifter | G71: =IF(ISERROR(C71- D71)=TRUE,"",C71 - D71) -> 0 | H71: =IF(ISERROR((((C71- D71)/D71)*100)=TRUE),"",IF((((C71- D71)/D71)*100)<-7,FIXED(((C71- D71)/D71)*100, 1,TRUE) &"%" & "▼",IF((((C71- D71)/D71)*100)>7,FIXED(((C71- D71)/D71)*100, 1,TRUE) &"%" &"▲",FIXED(((C71- D71)/D71)*100, 1,TRUE)&"%"))) -> 
A72: Garantiklinikken | B72: Hovedart 7: Indtægter | G72: 0
A73: Garantiklinikken | B73: Hovedart 8: Finansindtægter | G73: 0
A74: Garantiklinikken | B74: Hovedart 9: Interne udgifter og indtægter | G74: 0
A75: Garantiklinikken | B75: I alt | C75: =SUMIFS((C7:C74),(A7:A74),A75) -> 0 | D75: =SUMIFS((D7:D74),(A7:A74),A75) -> 0 | E75: =SUMIFS((E7:E74),(A7:A74),A75) -> 0 | F75: =SUMIFS((F7:F74),(A7:A74),A75) -> 0 | G75: 0
A76: Øvrige i Region Sjælland | G76: 0
A77: Øvrige i Region Sjælland | B77: Hovedart 1: Lønninger | G77: 0
A78: Øvrige i Region Sjælland | B78: Hovedart 2: Varekøb | G78: 0
A79: Øvrige i Region Sjælland | B79: Hovedart 4: Tjenesteydelser m.v. | G79: 0
A80: Øvrige i Region Sjælland | B80: Hovedart 5: Tilskud og overførsler | G80: 0
A81: Øvrige i Region Sjælland | B81: Hovedart 6: Finansudgifter | G81: 0
A82: Øvrige i Region Sjælland | B82: Hovedart 7: Indtægter | G82: 0
A83: Øvrige i Region Sjælland | B83: Hovedart 8: Finansindtægter | G83: 0
A84: Øvrige i Region Sjælland | B84: Hovedart 9: Interne udgifter og indtægter | G84: 0
A85: Øvrige i Region Sjælland | B85: I alt | C85: =SUMIFS((C7:C84),(A7:A84),A85) -> 0 | D85: =SUMIFS((D7:D84),(A7:A84),A85) -> 0 | E85: =SUMIFS((E7:E84),(A7:A84),A85) -> 0 | F85: =SUMIFS((F7:F84),(A7:A84),A85) -> 0 | G85: 0
A86: Ikke fordelte udgifter og indtægter | G86: 0
A87: Ikke fordelte udgifter og indtægter | B87: Hovedart 1: Lønninger | C87: 594052.5906 | D87: 688666.5329 | E87: 871511.5356 | F87: 474314.4362 | G87: -94613.94227 | H87: -13,7%▼
A88: Ikke fordelte udgifter og indtægter | B88: Hovedart 2: Varekøb | C88: 118603.951 | D88: 174907.9861 | E88: 308125.3511 | F88: 217901.2812 | G88: -56304.03511 | H88: -32,2%▼ | I88: Se note 3
A89: Ikke fordelte udgifter og indtægter | B89: Hovedart 4: Tjenesteydelser m.v. | C89: 3936888.722 | D89: 4403309.54 | E89: 3938689.465 | F89: 3816983.971 | G89: -466420.8177 | H89: -10,6%▼ | I89: Se note 3
A90: Ikke fordelte udgifter og indtægter | B90: Hovedart 5: Tilskud og overførsler | C90: 144576.6427 | D90: 199988.0845 | E90: 128635.531 | F90: 133259.9105 | G90: -55411.4418 | H90: -27,7%▼ | I90: Se note 3
A91: Ikke fordelte udgifter og indtægter | B91: Hovedart 6: Finansudgifter | D91: 0.31 | E91: -146.76028 | G91: -0.31 | H91: -100,0%▼
A92: Ikke fordelte udgifter og indtægter | B92: Hovedart 7: Indtægter | C92: -566565.375 | D92: -929859.4496 | E92: -1032198.38 | F92: -442317.46 | G92: 363294.0745 | H92: -39,1%▼ | I92: Se note 3
A93: Ikke fordelte udgifter og indtægter | B93: Hovedart 8: Finansindtægter | F93: -69600 | G93: 0
A94: Ikke fordelte udgifter og indtægter | B94: Hovedart 9: Interne udgifter og indtægter | C94: -126917.8323 | D94: -111364.7022 | E94: -95234.48224 | F94: -102756.7575 | G94: -15553.1301 | H94: 14,0%▲ | I94: Se note 3
A95: Ikke fordelte udgifter og indtægter | B95: I alt | C95: =SUMIFS((C7:C94),(A7:A94),A95) -> 4100638.699 | D95: =SUMIFS((D7:D94),(A7:A94),A95) -> 4425648.301 | E95: =SUMIFS((E7:E94),(A7:A94),A95) -> 4119382.26 | F95: =SUMIFS((F7:F94),(A7:A94),A95) -> 4027785.382 | G95: -325009.6025 | H95: -7,3%▼

Sheet Skema 3
A1: Region Sjælland, somatiske sygehuse.
B2: Skema 3: Regionale fællesudgifter og -indtægter. (1.000 kr.)
A5: Sygehus | C5: 2023 | D5: 2022 | E5: 2021 | F5: 2020 | G5: Δ2022-2023 | H5: % afvigelse | I5: Begrundelse
A6: Sjællands Universitetshospital
A7: Sjællands Universitetshospital | B7: 1.70.50: Andel af fællesudgifter | C7: 261465.7175 | D7: 244166.8168 | E7: 211707.3888 | F7: 201968.7589 | G7: =IF(ISERROR(C7- D7)=TRUE,"",C7 - D7) -> 17298.90067 | H7: =IF(ISERROR((((C7- D7)/D7)*100)=TRUE),"",IF((((C7- D7)/D7)*100)<-7,FIXED(((C7- D7)/D7)*100, 1,TRUE) &"%" & "▼",IF((((C7- D7)/D7)*100)>7,FIXED(((C7- D7)/D7)*100, 1,TRUE) &"%" &"▲",FIXED(((C7- D7)/D7)*100, 1,TRUE)&"%"))) -> 7,1%▲ | I7: Se note 4
A8: Sjællands Universitetshospital | B8: 1.60.40: Andel af central administration af sundhed (til og med 2019) | G8: 0
A9: Sjællands Universitetshospital | B9: 1.60.41: Andel af øvrige udgifter og indtægter | G9: 0
A10: Sjællands Universitetshospital | B10: 1.50.33: Andel af central administration af sundhed (ekskl. psykiatri) | G10: 0
A11: Sjællands Universitetshospital | B11: 1.50.35: Administration af det psykiatriske område (kun central del) | G11: 0
A12: Sjællands Universitetshospital | B12: I alt | C12: =SUMIFS((C7:C11),(A7:A11),A12) -> 261465.7175 | D12: =SUMIFS((D7:D11),(A7:A11),A12) -> 244166.8168 | E12: =SUMIFS((E7:E11),(A7:A11),A12) -> 211707.3888 | F12: =SUMIFS((F7:F11),(A7:A11),A12) -> 201968.7589 | G12: 17298.90067 | H12: 7,1%▲
A13: Holbæk Sygehus | G13: 0
A14: Holbæk Sygehus | B14: 1.70.50: Andel af fællesudgifter | C14: 74920.98409 | D14: 77112.20786 | E14: 69383.7855 | F14: 67719.30567 | G14: -2191.223769 | H14: -2,8% | I14: Se note 5
A15: Holbæk Sygehus | B15: 1.60.40: Andel af central administration af sundhed (til og med 2019) | G15: 0
A16: Holbæk Sygehus | B16: 1.60.41: Andel af øvrige udgifter og indtægter | G16: 0
A17: Holbæk Sygehus | B17: 1.50.33: Andel af central administration af sundhed (ekskl. psykiatri) | G17: 0
A18: Holbæk Sygehus | B18: 1.50.35: Administration af det psykiatriske område (kun central del) | G18: 0
A19: Holbæk Sygehus | B19: I alt | C19: =SUMIFS((C7:C18),(A7:A18),A19) -> 74920.98409 | D19: =SUMIFS((D7:D18),(A7:A18),A19) -> 77112.20786 | E19: =SUMIFS((E7:E18),(A7:A18),A19) -> 69383.7855 | F19: =SUMIFS((F7:F18),(A7:A18),A19) -> 67719.30567 | G19: -2191.223769 | H19: -2,8%
A20: Næstved, Slagelse og Ringsted Sygehuse | G20: 0
A21: Næstved, Slagelse og Ringsted Sygehuse | B21: 1.70.50: Andel af fællesudgifter | C21: 117145.4001 | D21: 115937.2311 | E21: 112584.8072 | F21: 108393.2538 | G21: 1208.168978 | H21: 1,0%
A22: Næstved, Slagelse og Ringsted Sygehuse | B22: 1.60.40: Andel af central administration af sundhed (til og med 2019) | G22: 0
A23: Næstved, Slagelse og Ringsted Sygehuse | B23: 1.60.41: Andel af øvrige udgifter og indtægter | G23: 0
A24: Næstved, Slagelse og Ringsted Sygehuse | B24: 1.50.33: Andel af central administration af sundhed (ekskl. psykiatri) | G24: 0
A25: Næstved, Slagelse og Ringsted Sygehuse | B25: 1.50.35: Administration af det psykiatriske område (kun central del) | G25: 0
A26: Næstved, Slagelse og Ringsted Sygehuse | B26: I alt | C26: =SUMIFS((C7:C25),(A7:A25),A26) -> 117145.4001 | D26: =SUMIFS((D7:D25),(A7:A25),A26) -> 115937.2311 | E26: =SUMIFS((E7:E25),(A7:A25),A26) -> 112584.8072 | F26: =SUMIFS((F7:F25),(A7:A25),A26) -> 108393.2538 | G26: 1208.168978 | H26: 1,0%
A27: Nykøbing F. Sygehus | G27: 0
A28: Nykøbing F. Sygehus | B28: 1.70.50: Andel af fællesudgifter | C28: 51728.3803 | D28: 48740.24699 | E28: 48877.61558 | F28: 45431.93998 | G28: 2988.133314 | H28: 6,1%
A29: Nykøbing F. Sygehus | B29: 1.60.40: Andel af central administration af sundhed (til og med 2019) | G29: 0
A30: Nykøbing F. Sygehus | B30: 1.60.41: Andel af øvrige udgifter og indtægter | G30: 0
A31: Nykøbing F. Sygehus | B31: 1.50.33: Andel af central administration af sundhed (ekskl. psykiatri) | G31: 0
A32: Nykøbing F. Sygehus | B32: 1.50.35: Administration af det psykiatriske område (kun central del) | G32: 0
A33: Nykøbing F. Sygehus | B33: I alt | C33: =SUMIFS((C7:C32),(A7:A32),A33) -> 51728.3803 | D33: =SUMIFS((D7:D32),(A7:A32),A33) -> 48740.24699 | E33: =SUMIFS((E7:E32),(A7:A32),A33) -> 48877.61558 | F33: =SUMIFS((F7:F32),(A7:A32),A33) -> 45431.93998 | G33: 2988.133314 | H33: 6,1%
A34: Sygehus Nord | G34: 0
A35: Sygehus Nord | B35: 1.70.50: Andel af fællesudgifter | G35: 0
A36: Sygehus Nord | B36: 1.60.40: Andel af central administration af sundhed (til og med 2019) | G36: 0
A37: Sygehus Nord | B37: 1.60.41: Andel af øvrige udgifter og indtægter | G37: 0
A38: Sygehus Nord | B38: 1.50.33: Andel af central administration af sundhed (ekskl. psykiatri) | G38: 0
A39: Sygehus Nord | B39: 1.50.35: Administration af det psykiatriske område (kun central del) | G39: =IF(ISERROR(C39- D39)=TRUE,"",C39 - D39) -> 0 | H39: =IF(ISERROR((((C39- D39)/D39)*100)=TRUE),"",IF((((C39- D39)/D39)*100)<-7,FIXED(((C39- D39)/D39)*100, 1,TRUE) &"%" & "▼",IF((((C39- D39)/D39)*100)>7,FIXED(((C39- D39)/D39)*100, 1,TRUE) &"%" &"▲",FIXED(((C39- D39)/D39)*100, 1,TRUE)&"%"))) -> 
A40: Sygehus Nord | B40: I alt | C40: =SUMIFS((C7:C39),(A7:A39),A40) -> 0 | D40: =SUMIFS((D7:D39),(A7:A39),A40) -> 0 | E40: =SUMIFS((E7:E39),(A7:A39),A40) -> 0 | F40: =SUMIFS((F7:F39),(A7:A39),A40) -> 0 | G40: 0
A41: Sygehus Syd | G41: 0
A42: Sygehus Syd | B42: 1.70.50: Andel af fællesudgifter | G42: 0
A43: Sygehus Syd | B43: 1.60.40: Andel af central administration af sundhed (til og med 2019) | G43: 0
A44: Sygehus Syd | B44: 1.60.41: Andel af øvrige udgifter og indtægter | G44: 0
A45: Sygehus Syd | B45: 1.50.33: Andel af central administration af sundhed (ekskl. psykiatri) | G45: 0
A46: Sygehus Syd | B46: 1.50.35: Administration af det psykiatriske område (kun central del) | G46: 0
A47: Sygehus Syd | B47: I alt | C47: =SUMIFS((C7:C46),(A7:A46),A47) -> 0 | D47: =SUMIFS((D7:D46),(A7:A46),A47) -> 0 | E47: =SUMIFS((E7:E46),(A7:A46),A47) -> 0 | F47: =SUMIFS((F7:F46),(A7:A46),A47) -> 0 | G47: 0
A48: Garantiklinikken | G48: 0
A49: Garantiklinikken | B49: 1.70.50: Andel af fællesudgifter | G49: 0
A50: Garantiklinikken | B50: 1.60.40: Andel af central administration af sundhed (til og med 2019) | G50: 0
A51: Garantiklinikken | B51: 1.60.41: Andel af øvrige udgifter og indtægter | G51: 0
A52: Garantiklinikken | B52: 1.50.33: Andel af central administration af sundhed (ekskl. psykiatri) | G52: 0
A53: Garantiklinikken | B53: 1.50.35: Administration af det psykiatriske område (kun central del) | G53: 0
A54: Garantiklinikken | B54: I alt | C54: =SUMIFS((C7:C53),(A7:A53),A54) -> 0 | D54: =SUMIFS((D7:D53),(A7:A53),A54) -> 0 | E54: =SUMIFS((E7:E53),(A7:A53),A54) -> 0 | F54: =SUMIFS((F7:F53),(A7:A53),A54) -> 0 | G54: 0
A55: Øvrige i Region Sjælland | G55: 0
A56: Øvrige i Region Sjælland | B56: 1.70.50: Andel af fællesudgifter | G56: 0
A57: Øvrige i Region Sjælland | B57: 1.60.40: Andel af central administration af sundhed (til og med 2019) | G57: 0
A58: Øvrige i Region Sjælland | B58: 1.60.41: Andel af øvrige udgifter og indtægter | G58: 0
A59: Øvrige i Region Sjælland | B59: 1.50.33: Andel af central administration af sundhed (ekskl. psykiatri) | G59: 0
A60: Øvrige i Region Sjælland | B60: 1.50.35: Administration af det psykiatriske område (kun central del) | G60: 0
A61: Øvrige i Region Sjælland | B61: I alt | C61: =SUMIFS((C7:C60),(A7:A60),A61) -> 0 | D61: =SUMIFS((D7:D60),(A7:A60),A61) -> 0 | E61: =SUMIFS((E7:E60),(A7:A60),A61) -> 0 | F61: =SUMIFS((F7:F60),(A7:A60),A61) -> 0 | G61: 0
A62: Ikke fordelte udgifter og indtægter | G62: 0
A63: Ikke fordelte udgifter og indtægter | B63: 1.70.50: Andel af fællesudgifter | C63: 358672.003 | D63: 351306.0172 | E63: 741393.4618 | F63: 436291.1206 | G63: 7365.985852 | H63: 2,1% | I63: Se note 6
A64: Ikke fordelte udgifter og indtægter | B64: 1.60.40: Andel af central administration af sundhed (til og med 2019) | G64: 0
A65: Ikke fordelte udgifter og indtægter | B65: 1.60.41: Andel af øvrige udgifter og indtægter | G65: 0
A66: Ikke fordelte udgifter og indtægter | B66: 1.50.33: Andel af central administration af sundhed (ekskl. psykiatri) | G66: 0
A67: Ikke fordelte udgifter og indtægter | B67: 1.50.35: Administration af det psykiatriske område (kun central del) | G67: 0
A68: Ikke fordelte udgifter og indtægter | B68: I alt | C68: =SUMIFS((C7:C67),(A7:A67),A68) -> 358672.003 | D68: =SUMIFS((D7:D67),(A7:A67),A68) -> 351306.0172 | E68: =SUMIFS((E7:E67),(A7:A67),A68) -> 741393.4618 | F68: =SUMIFS((F7:F67),(A7:A67),A68) -> 436291.1206 | G68: 7365.985852 | H68: 2,1%

Sheet Skema 4
A1: Region Sjælland, somatiske sygehuse.
B2: Skema 4: Udgifter og indtægter til og fra psykiatriske afdelinger konteret på somatiske sygehuse. (1.000 kr.)
A5: Sygehus | C5: 2023 | D5: 2022 | E5: 2021 | F5: 2020 | G5: Δ2022-2023 | H5: % afvigelse | I5: Begrundelse
A6: Sjællands Universitetshospital
A7: Sjællands Universitetshospital | B7: Korrektion | G7: =IF(ISERROR(C7- D7)=TRUE,"",C7 - D7) -> 0 | H7: =IF(ISERROR((((C7- D7)/D7)*100)=TRUE),"",IF((((C7- D7)/D7)*100)<-7,FIXED(((C7- D7)/D7)*100, 1,TRUE) &"%" & "▼",IF((((C7- D7)/D7)*100)>7,FIXED(((C7- D7)/D7)*100, 1,TRUE) &"%" &"▲",FIXED(((C7- D7)/D7)*100, 1,TRUE)&"%"))) -> 
A8: Sjællands Universitetshospital | B8: Lønudg. på psyk. afd.,somatiske sygehuse | G8: 0
A9: Sjællands Universitetshospital | B9: Øvrige udg. til psyk. afd.,somatiske sygehuse | G9: 0
A10: Sjællands Universitetshospital | B10: I alt | C10: =SUMIFS((C7:C9),(A7:A9),A10) -> 0 | D10: =SUMIFS((D7:D9),(A7:A9),A10) -> 0 | E10: =SUMIFS((E7:E9),(A7:A9),A10) -> 0 | F10: =SUMIFS((F7:F9),(A7:A9),A10) -> 0 | G10: 0
A11: Holbæk Sygehus | G11: 0
A12: Holbæk Sygehus | B12: Korrektion | G12: 0
A13: Holbæk Sygehus | B13: Lønudg. på psyk. afd.,somatiske sygehuse | G13: 0
A14: Holbæk Sygehus | B14: Øvrige udg. til psyk. afd.,somatiske sygehuse | G14: 0
A15: Holbæk Sygehus | B15: I alt | C15: =SUMIFS((C7:C14),(A7:A14),A15) -> 0 | D15: =SUMIFS((D7:D14),(A7:A14),A15) -> 0 | E15: =SUMIFS((E7:E14),(A7:A14),A15) -> 0 | F15: =SUMIFS((F7:F14),(A7:A14),A15) -> 0 | G15: 0
A16: Næstved, Slagelse og Ringsted Sygehuse | G16: 0
A17: Næstved, Slagelse og Ringsted Sygehuse | B17: Korrektion | G17: 0
A18: Næstved, Slagelse og Ringsted Sygehuse | B18: Lønudg. på psyk. afd.,somatiske sygehuse | G18: 0
A19: Næstved, Slagelse og Ringsted Sygehuse | B19: Øvrige udg. til psyk. afd.,somatiske sygehuse | G19: 0
A20: Næstved, Slagelse og Ringsted Sygehuse | B20: I alt | C20: =SUMIFS((C7:C19),(A7:A19),A20) -> 0 | D20: =SUMIFS((D7:D19),(A7:A19),A20) -> 0 | E20: =SUMIFS((E7:E19),(A7:A19),A20) -> 0 | F20: =SUMIFS((F7:F19),(A7:A19),A20) -> 0 | G20: 0
A21: Nykøbing F. Sygehus | G21: 0
A22: Nykøbing F. Sygehus | B22: Korrektion | G22: 0
A23: Nykøbing F. Sygehus | B23: Lønudg. på psyk. afd.,somatiske sygehuse | G23: 0
A24: Nykøbing F. Sygehus | B24: Øvrige udg. til psyk. afd.,somatiske sygehuse | G24: 0
A25: Nykøbing F. Sygehus | B25: I alt | C25: =SUMIFS((C7:C24),(A7:A24),A25) -> 0 | D25: =SUMIFS((D7:D24),(A7:A24),A25) -> 0 | E25: =SUMIFS((E7:E24),(A7:A24),A25) -> 0 | F25: =SUMIFS((F7:F24),(A7:A24),A25) -> 0 | G25: 0
A26: Sygehus Nord | G26: 0
A27: Sygehus Nord | B27: Korrektion | G27: 0
A28: Sygehus Nord | B28: Lønudg. på psyk. afd.,somatiske sygehuse | G28: 0
A29: Sygehus Nord | B29: Øvrige udg. til psyk. afd.,somatiske sygehuse | G29: 0
A30: Sygehus Nord | B30: I alt | C30: =SUMIFS((C7:C29),(A7:A29),A30) -> 0 | D30: =SUMIFS((D7:D29),(A7:A29),A30) -> 0 | E30: =SUMIFS((E7:E29),(A7:A29),A30) -> 0 | F30: =SUMIFS((F7:F29),(A7:A29),A30) -> 0 | G30: 0
A31: Sygehus Syd | G31: 0
A32: Sygehus Syd | B32: Korrektion | G32: 0
A33: Sygehus Syd | B33: Lønudg. på psyk. afd.,somatiske sygehuse | G33: 0
A34: Sygehus Syd | B34: Øvrige udg. til psyk. afd.,somatiske sygehuse | G34: 0
A35: Sygehus Syd | B35: I alt | C35: =SUMIFS((C7:C34),(A7:A34),A35) -> 0 | D35: =SUMIFS((D7:D34),(A7:A34),A35) -> 0 | E35: =SUMIFS((E7:E34),(A7:A34),A35) -> 0 | F35: =SUMIFS((F7:F34),(A7:A34),A35) -> 0 | G35: 0
A36: Garantiklinikken | G36: 0
A37: Garantiklinikken | B37: Korrektion | G37: 0
A38: Garantiklinikken | B38: Lønudg. på psyk. afd.,somatiske sygehuse | G38: 0
A39: Garantiklinikken | B39: Øvrige udg. til psyk. afd.,somatiske sygehuse | G39: 0
A40: Garantiklinikken | B40: I alt | C40: =SUMIFS((C7:C39),(A7:A39),A40) -> 0 | D40: =SUMIFS((D7:D39),(A7:A39),A40) -> 0 | E40: =SUMIFS((E7:E39),(A7:A39),A40) -> 0 | F40: =SUMIFS((F7:F39),(A7:A39),A40) -> 0 | G40: 0
A41: Øvrige i Region Sjælland | G41: 0
A42: Øvrige i Region Sjælland | B42: Korrektion | G42: 0
A43: Øvrige i Region Sjælland | B43: Lønudg. på psyk. afd.,somatiske sygehuse | G43: 0
A44: Øvrige i Region Sjælland | B44: Øvrige udg. til psyk. afd.,somatiske sygehuse | G44: 0
A45: Øvrige i Region Sjælland | B45: I alt | C45: =SUMIFS((C7:C44),(A7:A44),A45) -> 0 | D45: =SUMIFS((D7:D44),(A7:A44),A45) -> 0 | E45: =SUMIFS((E7:E44),(A7:A44),A45) -> 0 | F45: =SUMIFS((F7:F44),(A7:A44),A45) -> 0 | G45: 0
A46: Ikke fordelte udgifter og indtægter | G46: 0
A47: Ikke fordelte udgifter og indtægter | B47: Korrektion | G47: 0
A48: Ikke fordelte udgifter og indtægter | B48: Lønudg. på psyk. afd.,somatiske sygehuse | G48: 0
A49: Ikke fordelte udgifter og indtægter | B49: Øvrige udg. til psyk. afd.,somatiske sygehuse | G49: 0
A50: Ikke fordelte udgifter og indtægter | B50: I alt | C50: =SUMIFS((C7:C49),(A7:A49),A50) -> 0 | D50: =SUMIFS((D7:D49),(A7:A49),A50) -> 0 | E50: =SUMIFS((E7:E49),(A7:A49),A50) -> 0 | F50: =SUMIFS((F7:F49),(A7:A49),A50) -> 0 | G50: 0

Sheet Skema 5
A1: Region Sjælland, somatiske sygehuse.
B2: Skema 5: Leasing- og huslejeudgifter. (1.000 kr.)
A5: Sygehus | C5: 2023 | D5: 2022 | E5: 2021 | F5: 2020 | G5: Δ2022-2023 | H5: % afvigelse | I5: Begrundelse
A6: Sjællands Universitetshospital
A7: Sjællands Universitetshospital | B7: Andre udgifter | G7: =IF(ISERROR(C7- D7)=TRUE,"",C7 - D7) -> 0 | H7: =IF(ISERROR((((C7- D7)/D7)*100)=TRUE),"",IF((((C7- D7)/D7)*100)<-7,FIXED(((C7- D7)/D7)*100, 1,TRUE) &"%" & "▼",IF((((C7- D7)/D7)*100)>7,FIXED(((C7- D7)/D7)*100, 1,TRUE) &"%" &"▲",FIXED(((C7- D7)/D7)*100, 1,TRUE)&"%"))) -> 
A8: Sjællands Universitetshospital | B8: Leasing- og lejeudgifter | C8: 45719.21247 | D8: 28209.23886 | E8: 17446.2091 | F8: 22866.20317 | G8: 17509.97361 | H8: 62,1%▲ | I8: ESCO projekt alene små 5 mio. Derudover øget regionalt fordelte udgifter 4 mio.
A9: Sjællands Universitetshospital | B9: Huslejeudgifter | C9: 13273.03213 | D9: 11518.6 | E9: 247.42818 | F9: 238.4217117 | G9: 1754.432131 | H9: 15,2%▲ | I9: Uvæsenligt beløb
A10: Sjællands Universitetshospital | B10: I alt | C10: =SUMIFS((C7:C9),(A7:A9),A10) -> 58992.2446 | D10: =SUMIFS((D7:D9),(A7:A9),A10) -> 39727.83886 | E10: =SUMIFS((E7:E9),(A7:A9),A10) -> 17693.63728 | F10: =SUMIFS((F7:F9),(A7:A9),A10) -> 23104.62489 | G10: 19264.40574 | H10: 48,5%▲
A11: Holbæk Sygehus | G11: 0
A12: Holbæk Sygehus | B12: Andre udgifter | G12: 0
A13: Holbæk Sygehus | B13: Leasing- og lejeudgifter | C13: 9306.901452 | D13: =9598064.83259496/1000 -> 9598.064833 | E13: 6538.573573 | F13: 17824.91575 | G13: -291.1633805 | H13: -3,0%
A14: Holbæk Sygehus | B14: Huslejeudgifter | C14: 1127.734836 | D14: =309343.483008532/1000 -> 309.343483 | E14: 282.0507298 | F14: 104.4026048 | G14: 818.3913532 | H14: 264,6%▲ | I14: Uvæsenligt beløb-muligvis ændret kontering
A15: Holbæk Sygehus | B15: I alt | C15: =SUMIFS((C7:C14),(A7:A14),A15) -> 10434.63629 | D15: =SUMIFS((D7:D14),(A7:A14),A15) -> 9907.408316 | E15: =SUMIFS((E7:E14),(A7:A14),A15) -> 6820.624303 | F15: =SUMIFS((F7:F14),(A7:A14),A15) -> 17929.31835 | G15: 527.2279727 | H15: 5,3%
A16: Næstved, Slagelse og Ringsted Sygehuse | G16: 0
A17: Næstved, Slagelse og Ringsted Sygehuse | B17: Andre udgifter | G17: 0
A18: Næstved, Slagelse og Ringsted Sygehuse | B18: Leasing- og lejeudgifter | C18: 10408.224 | D18: 11712.84654 | E18: 17337.58852 | F18: 22425.16949 | G18: -1304.622542 | H18: -11,1%▼ | I18: NSR har haft en række leasingaftaler, som er udløbet i løbet af 2022 og 2023.
A19: Næstved, Slagelse og Ringsted Sygehuse | B19: Huslejeudgifter | C19: 37693.586 | D19: 34441.15075 | E19: 33155.43887 | F19: 33650.54086 | G19: 3252.435252 | H19: 9,4%▲ | I19: Huslejestigning i leje 8-10% grundet høj inflation.
A20: Næstved, Slagelse og Ringsted Sygehuse | B20: I alt | C20: =SUMIFS((C7:C19),(A7:A19),A20) -> 48101.81 | D20: =SUMIFS((D7:D19),(A7:A19),A20) -> 46153.99729 | E20: =SUMIFS((E7:E19),(A7:A19),A20) -> 50493.02739 | F20: =SUMIFS((F7:F19),(A7:A19),A20) -> 56075.71035 | G20: 1947.812709 | H20: 4,2%
A21: Nykøbing F. Sygehus | G21: 0
A22: Nykøbing F. Sygehus | B22: Andre udgifter | G22: 0
A23: Nykøbing F. Sygehus | B23: Leasing- og lejeudgifter | C23: 6510.028177 | D23: 5060.25 | E23: 7839.981328 | F23: =8968276.056/1000 -> 8968.276056 | G23: 1449.778177 | H23: 28,7%▲ | I23: Der bliver stadig indkøbt forskellige hjælpemidler i stedet for leasing, Radiologien leaser udsstyr, som er flyttet til SUH
A24: Nykøbing F. Sygehus | B24: Huslejeudgifter | C24: 378.2150065 | D24: 70.296 | E24: 59.34484452 | F24: =69246.17/1000 -> 69.24617 | G24: 307.9190065 | H24: 438,0%▲ | I24: Uvæsenligt beløb
A25: Nykøbing F. Sygehus | B25: I alt | C25: =SUMIFS((C7:C24),(A7:A24),A25) -> 6888.243184 | D25: =SUMIFS((D7:D24),(A7:A24),A25) -> 5130.546 | E25: =SUMIFS((E7:E24),(A7:A24),A25) -> 7899.326173 | F25: =SUMIFS((F7:F24),(A7:A24),A25) -> 9037.522226 | G25: 1757.697184 | H25: 34,3%▲
A26: Sygehus Nord | G26: 0
A27: Sygehus Nord | B27: Andre udgifter | G27: 0
A28: Sygehus Nord | B28: Leasing- og lejeudgifter | G28: 0
A29: Sygehus Nord | B29: Huslejeudgifter | G29: 0
A30: Sygehus Nord | B30: I alt | C30: =SUMIFS((C7:C29),(A7:A29),A30) -> 0 | D30: =SUMIFS((D7:D29),(A7:A29),A30) -> 0 | E30: =SUMIFS((E7:E29),(A7:A29),A30) -> 0 | F30: =SUMIFS((F7:F29),(A7:A29),A30) -> 0 | G30: 0
A31: Sygehus Syd | G31: 0
A32: Sygehus Syd | B32: Andre udgifter | G32: 0
A33: Sygehus Syd | B33: Leasing- og lejeudgifter | G33: 0
A34: Sygehus Syd | B34: Huslejeudgifter | G34: 0
A35: Sygehus Syd | B35: I alt | C35: =SUMIFS((C7:C34),(A7:A34),A35) -> 0 | D35: =SUMIFS((D7:D34),(A7:A34),A35) -> 0 | E35: =SUMIFS((E7:E34),(A7:A34),A35) -> 0 | F35: =SUMIFS((F7:F34),(A7:A34),A35) -> 0 | G35: 0
A36: Garantiklinikken | G36: 0
A37: Garantiklinikken | B37: Andre udgifter | G37: 0
A38: Garantiklinikken | B38: Leasing- og lejeudgifter | G38: 0
A39: Garantiklinikken | B39: Huslejeudgifter | G39: 0
A40: Garantiklinikken | B40: I alt | C40: =SUMIFS((C7:C39),(A7:A39),A40) -> 0 | D40: =SUMIFS((D7:D39),(A7:A39),A40) -> 0 | E40: =SUMIFS((E7:E39),(A7:A39),A40) -> 0 | F40: =SUMIFS((F7:F39),(A7:A39),A40) -> 0 | G40: 0
A41: Øvrige i Region Sjælland | G41: 0
A42: Øvrige i Region Sjælland | B42: Andre udgifter | G42: 0
A43: Øvrige i Region Sjælland | B43: Leasing- og lejeudgifter | G43: 0
A44: Øvrige i Region Sjælland | B44: Huslejeudgifter | G44: 0
A45: Øvrige i Region Sjælland | B45: I alt | C45: =SUMIFS((C7:C44),(A7:A44),A45) -> 0 | D45: =SUMIFS((D7:D44),(A7:A44),A45) -> 0 | E45: =SUMIFS((E7:E44),(A7:A44),A45) -> 0 | F45: =SUMIFS((F7:F44),(A7:A44),A45) -> 0 | G45: 0
A46: Ikke fordelte udgifter og indtægter | G46: 0
A47: Ikke fordelte udgifter og indtægter | B47: Andre udgifter | G47: 0
A48: Ikke fordelte udgifter og indtægter | B48: Leasing- og lejeudgifter | G48: 0
A49: Ikke fordelte udgifter og indtægter | B49: Huslejeudgifter | G49: 0
A50: Ikke fordelte udgifter og indtægter | B50: I alt | C50: =SUMIFS((C7:C49),(A7:A49),A50) -> 0 | D50: =SUMIFS((D7:D49),(A7:A49),A50) -> 0 | E50: =SUMIFS((E7:E49),(A7:A49),A50) -> 0 | F50: =SUMIFS((F7:F49),(A7:A49),A50) -> 0 | G50: 0

Sheet Skema 6
A1: Region Sjælland, somatiske sygehuse.
B2: Skema 6: Udgifter til andet end patientbehandling. (1.000 kr.)
A5: Sygehus | C5: 2023 | D5: 2022 | E5: 2021 | F5: 2020 | G5: Δ2022-2023 | H5: % afvigelse | I5: Begrundelse
A6: Sjællands Universitetshospital
A7: Sjællands Universitetshospital | B7: Skema 6.1: Center for voldsramte (Bispebjerg) | D7: 0 | E7: 0 | G7: =IF(ISERROR(C7- D7)=TRUE,"",C7 - D7) -> 0 | H7: =IF(ISERROR((((C7- D7)/D7)*100)=TRUE),"",IF((((C7- D7)/D7)*100)<-7,FIXED(((C7- D7)/D7)*100, 1,TRUE) &"%" & "▼",IF((((C7- D7)/D7)*100)>7,FIXED(((C7- D7)/D7)*100, 1,TRUE) &"%" &"▲",FIXED(((C7- D7)/D7)*100, 1,TRUE)&"%"))) -> 
A8: Sjællands Universitetshospital | B8: Skema 6.2: Ventilatørbistand i hjemmet, respiratorpatienter | D8: 0 | E8: 0 | G8: 0
A9: Sjællands Universitetshospital | B9: Skema 6.3: Blodprøvetagning i eget hjem | C9: 2541.424672 | D9: 2397.419732 | E9: 2151.037494 | F9: 2121.239067 | G9: 144.0049392 | H9: 6,0% | I9: Generel aktivitetsstigning
A10: Sjællands Universitetshospital | B10: Skema 6.4: Psykinfo + pårørende | D10: 0 | E10: 0 | G10: 0
A11: Sjællands Universitetshospital | B11: Skema 6.5: Leveret udstyr til patienter i eget hjem, ilt og sonderemedier | D11: 0 | E11: 0 | G11: 0
A12: Sjællands Universitetshospital | B12: Skema 6.6: Montebello (Nordsjællands Hospitaler) | D12: 0 | E12: 0 | G12: 0
A13: Sjællands Universitetshospital | B13: Skema 6.7: Satspulje korrektioner mellem år | D13: 0 | E13: 0 | G13: 0
A14: Sjællands Universitetshospital | B14: Skema 6.8: Klinisk farmakologisk rådgivning af praksissektoren | D14: 0 | E14: 0 | G14: 0
A15: Sjællands Universitetshospital | B15: Skema 6.9: Tandregulering ifm. operation | D15: 0 | E15: 0 | G15: 0
A16: Sjællands Universitetshospital | B16: Skema 6.10: Giftlinjen | D16: 0 | E16: 0 | G16: 0
A17: Sjællands Universitetshospital | B17: Skema 6.11: Tjenestemandspensioner | D17: 0 | E17: 0 | G17: 0
A18: Sjællands Universitetshospital | B18: Skema 6.12: Art 4.6 Betalinger til staten | D18: 0 | E18: 0 | G18: 0
A19: Sjællands Universitetshospital | B19: Skema 6.13: Art 4.7 Betalinger til kommuner | D19: 0 | E19: 0 | G19: 0
A20: Sjællands Universitetshospital | B20: Skema 6.14: Art 4.8 Betalinger til andre regioner | D20: 0 | E20: 0 | G20: 0
A21: Sjællands Universitetshospital | B21: Skema 6.15: Art 7.6 Betalinger fra staten | D21: 0 | E21: 0 | G21: 0
A22: Sjællands Universitetshospital | B22: Skema 6.16: Art 7.7 Betalinger fra kommuner | D22: 0 | E22: 0 | G22: 0
A23: Sjællands Universitetshospital | B23: Skema 6.17: Art 7.8 Betalinger fra andre regioner | D23: 0 | E23: 0 | G23: 0
A24: Sjællands Universitetshospital | B24: Skema 6.18: Betalinger til selvejende, private og udenlandske sygehuse | D24: 0 | E24: 0 | G24: 0
A25: Sjællands Universitetshospital | B25: Skema 6.19: Dækningsafgift/ejendomsskat | C25: 146.9496616 | D25: 9102.48434 | E25: 7686.735164 | F25: 10609.90052 | G25: -8955.534678 | H25: -98,4%▼ | I25: Skyldes forkert indberetning tidligere år
A26: Sjællands Universitetshospital | B26: Skema 6.20: Forsikringer/erstatninger | C26: 1138.054108 | D26: 15583.13984 | E26: 15096.31003 | F26: 13668.70042 | G26: -14445.08573 | H26: -92,7%▼ | I26: Skyldes forkert indberetning tidligere år
A27: Sjællands Universitetshospital | B27: Skema 6.21: Vederlagsfri Lab. –ydelser og andre ydelser til praksissektoren | C27: 149686.773 | D27: 141197.0647 | E27: 135497.5325 | F27: 126833.6831 | G27: 8489.708303 | H27: 6,0%
A28: Sjællands Universitetshospital | B28: Skema 6.22: Patienttransport | C28: 0 | D28: 0 | E28: 0 | F28: 0 | G28: 0
A29: Sjællands Universitetshospital | B29: Skema 6.23: Serviceydelser til/fra andre institutioner eller sygehuse udenfor regionen | C29: 3263.100372 | D29: 3028.446348 | E29: 2701.813793 | F29: 2626.275493 | G29: 234.6540232 | H29: 7,7%▲ | I29: Almindelige udsving, uvæsentlig beløb
A30: Sjællands Universitetshospital | B30: Skema 6.24: Udgifter til eksternt finansierede forskning | C30: -359.25787 | D30: -318.96282 | E30: -991.82384 | F30: -209.20448 | G30: -40.29505 | H30: 12,6%▲ | I30: Almindelige udsving, uvæsentlig beløb
A31: Sjællands Universitetshospital | B31: Skema 6.25: Forebyggelse rettet mod praksissektoren og kommuner | D31: 0 | E31: 0 | G31: 0
A32: Sjællands Universitetshospital | B32: Skema 6.26: Praksisreservelæger | D32: 0 | E32: 0 | G32: 0
A33: Sjællands Universitetshospital | B33: Skema 6.27: Præhospital | D33: 0 | E33: 0 | G33: 0
A34: Sjællands Universitetshospital | B34: Skema 6.28: Udgifter til Danske Regioner (Kontigent, MedCom, Fællesproj.) | D34: 0 | E34: 0 | G34: 0
A35: Sjællands Universitetshospital | B35: Skema 6.29: Hospice | D35: 0 | E35: 0 | G35: 0
A36: Sjællands Universitetshospital | B36: Skema 6.30: Konsulenter(Praksis) | C36: 794.25 | D36: 638.36784 | E36: 627.44356 | F36: 195.87522 | G36: 155.88216 | H36: 24,4%▲ | I36: Praksiskonsulenterne er fordelt som administration på sygehuset. Burde have været 794.250 kr. i 2023, mangler i fordeligsregnskabet
A37: Sjællands Universitetshospital | B37: Skema 6.31: Videnskabsetisk Komité | D37: 0 | E37: 0 | G37: 0
A38: Sjællands Universitetshospital | B38: Skema 6.32: Tolkebistand | C38: 1497.68 | D38: 1247.92479 | E38: 1219.30894 | F38: 1364.54973 | G38: 249.75521 | H38: 20,0%▲ | I38: Fejl i 2023 fordelingsregnskab. Der burde have været posteret 1.497.680 kr. her. Afvigelsen skyldes øget behov i 2023 almindelige udsving
A39: Sjællands Universitetshospital | B39: Skema 6.33: Dansk Center for Partikelterapi | D39: 0 | E39: 0 | G39: 0
A40: Sjællands Universitetshospital | B40: Skema 6.34: Politisk organisation – overførte udgifter fra funktion 4.10.01, 4.10.02 og 4.10.04 | D40: 0 | E40: 0 | G40: 0
A41: Sjællands Universitetshospital | B41: Skema 6.35: Øvrige udgifter, Region Sjælland | D41: 0 | E41: 0 | G41: 0
A42: Sjællands Universitetshospital | B42: Skema 6.36: Sundhedsydelser ifm. specialsektor | D42: 0 | E42: 0 | G42: 0
A43: Sjællands Universitetshospital | B43: Skema 6.37: Udgifter til primær sundhed fra skema 2 | D43: 0 | E43: 0 | G43: 0
A44: Sjællands Universitetshospital | B44: Skema 6.38: Udgifter til primær sundhed fra skema 3 | D44: 0 | E44: 0 | G44: 0
A45: Sjællands Universitetshospital | B45: Skema 6.39: Særlige udgifter ifm. COVID-19 | D45: 184733.025 | E45: 174809.497 | F45: 205767.0277 | G45: =IF(ISERROR(C48- D45)=TRUE,"",C48 - D45) -> -2139.608558 | H45: =IF(ISERROR((((C48- D45)/D45)*100)=TRUE),"",IF((((C48- D45)/D45)*100)<-7,FIXED(((C48- D45)/D45)*100, 1,TRUE) &"%" & "▼",IF((((C48- D45)/D45)*100)>7,FIXED(((C48- D45)/D45)*100, 1,TRUE) &"%" &"▲",FIXED(((C48- D45)/D45)*100, 1,TRUE)&"%"))) -> -1,2%
A46: Sjællands Universitetshospital | B46: Skema 6.40: Udleveret udstyr/tilbehør ifm. cochlear implantater | D46: 0 | E46: 0 | G46: 0
A47: Sjællands Universitetshospital | B47: Skema 6.41: Luxturna-behandling, Rigshospitalet | D47: 0 | E47: 0 | G47: 0
A48: Sjællands Universitetshospital | B48: Skema 6.42: Udleveret medicin | C48: 182593.4165 | D48: 170463.9149 | E48: 181457.6483 | G48: =IF(ISERROR(#REF!- D48)=TRUE,"",#REF! - D48) ->  | H48: =IF(ISERROR((((#REF!- D48)/D48)*100)=TRUE),"",IF((((#REF!- D48)/D48)*100)<-7,FIXED(((#REF!- D48)/D48)*100, 1,TRUE) &"%" & "▼",IF((((#REF!- D48)/D48)*100)>7,FIXED(((#REF!- D48)/D48)*100, 1,TRUE) &"%" &"▲",FIXED(((#REF!- D48)/D48)*100, 1,TRUE)&"%"))) -> 
A49: Sjællands Universitetshospital | B49: Skema 6.43: Udgifter ifm. sundhedsklynger | D49: 0 | G49: 0
A50: Sjællands Universitetshospital | B50: Skema 6.44: Ukrainske patienter under særlov eller asyl | D50: 0 | G50: 0
A51: Sjællands Universitetshospital | B51: Skema 6.45: Udgifter ifm. de særlige pladser i psykiatrien | G51: 0
A52: Sjællands Universitetshospital | B52: Skema 6.46: Sikringsafdelingen, Region Sjælland | G52: 0
A53: Sjællands Universitetshospital | B53: Skema 6.47: Øvrige (Kan kun benyttes efter aftale med Sundhedsdatastyrelsen) | D53: 0 | E53: 0 | G53: 0
A54: Sjællands Universitetshospital | B54: Lukkede poster (må kun bruges af Sundhedsdatastyrelsen) | G54: 0
A55: Sjællands Universitetshospital | B55: I alt | C55: =SUMIFS((C7:C54),(A7:A54),A55) -> 341302.3905 | D55: =SUMIFS((D7:D54),(A7:A54),A55) -> 528072.8248 | E55: =SUMIFS((E7:E54),(A7:A54),A55) -> 520255.503 | F55: =SUMIFS((F7:F54),(A7:A54),A55) -> 362978.0467 | G55: -186770.4343 | H55: -35,4%▼
A56: Holbæk Sygehus | G56: 0
A57: Holbæk Sygehus | B57: Skema 6.1: Center for voldsramte (Bispebjerg) | D57: 0 | E57: 0 | F57: 0 | G57: 0
A58: Holbæk Sygehus | B58: Skema 6.2: Ventilatørbistand i hjemmet, respiratorpatienter | D58: 0 | E58: 0 | F58: 0 | G58: 0
A59: Holbæk Sygehus | B59: Skema 6.3: Blodprøvetagning i eget hjem | C59: 1122.70116 | D59: =1147282.81640894/1000 -> 1147.282816 | E59: 1065.500008 | F59: 1204.846202 | G59: -24.5816565 | H59: -2,1%
A60: Holbæk Sygehus | B60: Skema 6.4: Psykinfo + pårørende | D60: 0 | E60: 0 | F60: 0 | G60: 0
A61: Holbæk Sygehus | B61: Skema 6.5: Leveret udstyr til patienter i eget hjem, ilt og sonderemedier | C61: 1454.772242 | D61: =1239548.3823/1000 -> 1239.548382 | E61: 1037.067007 | F61: 1004.099315 | G61: 215.2238598 | H61: 17,4%▲ | I61: Refusion til patienter (strøm m.m.) er steget pga stigende elpriser
A62: Holbæk Sygehus | B62: Skema 6.6: Montebello (Nordsjællands Hospitaler) | D62: 0 | E62: 0 | F62: 0 | G62: 0
A63: Holbæk Sygehus | B63: Skema 6.7: Satspulje korrektioner mellem år | D63: 0 | E63: 0 | F63: 0 | G63: 0
A64: Holbæk Sygehus | B64: Skema 6.8: Klinisk farmakologisk rådgivning af praksissektoren | D64: 0 | E64: 0 | F64: 0 | G64: 0
A65: Holbæk Sygehus | B65: Skema 6.9: Tandregulering ifm. operation | D65: 0 | E65: 0 | F65: 0 | G65: 0
A66: Holbæk Sygehus | B66: Skema 6.10: Giftlinjen | D66: 0 | E66: 0 | F66: 0 | G66: 0
A67: Holbæk Sygehus | B67: Skema 6.11: Tjenestemandspensioner | D67: 0 | E67: 0 | F67: 0 | G67: 0
A68: Holbæk Sygehus | B68: Skema 6.12: Art 4.6 Betalinger til staten | D68: 0 | E68: 0 | F68: 0 | G68: 0
A69: Holbæk Sygehus | B69: Skema 6.13: Art 4.7 Betalinger til kommuner | D69: 0 | E69: 0 | F69: 0 | G69: 0
A70: Holbæk Sygehus | B70: Skema 6.14: Art 4.8 Betalinger til andre regioner | D70: 0 | E70: 0 | F70: 0 | G70: 0
A71: Holbæk Sygehus | B71: Skema 6.15: Art 7.6 Betalinger fra staten | D71: 0 | E71: 0 | F71: 0 | G71: =IF(ISERROR(C71- D71)=TRUE,"",C71 - D71) -> 0 | H71: =IF(ISERROR((((C71- D71)/D71)*100)=TRUE),"",IF((((C71- D71)/D71)*100)<-7,FIXED(((C71- D71)/D71)*100, 1,TRUE) &"%" & "▼",IF((((C71- D71)/D71)*100)>7,FIXED(((C71- D71)/D71)*100, 1,TRUE) &"%" &"▲",FIXED(((C71- D71)/D71)*100, 1,TRUE)&"%"))) -> 
A72: Holbæk Sygehus | B72: Skema 6.16: Art 7.7 Betalinger fra kommuner | D72: 0 | E72: 0 | F72: 0 | G72: 0
A73: Holbæk Sygehus | B73: Skema 6.17: Art 7.8 Betalinger fra andre regioner | D73: 0 | E73: 0 | F73: 0 | G73: 0
A74: Holbæk Sygehus | B74: Skema 6.18: Betalinger til selvejende, private og udenlandske sygehuse | D74: 0 | E74: 0 | F74: 0 | G74: 0
A75: Holbæk Sygehus | B75: Skema 6.19: Dækningsafgift/ejendomsskat | C75: 178.4219394 | D75: =179831.944252473/1000 -> 179.8319443 | E75: 164.0451291 | F75: 172.8957585 | G75: -1.410004817 | H75: -0,8%
A76: Holbæk Sygehus | B76: Skema 6.20: Forsikringer/erstatninger | C76: 9338.294531 | D76: =6366132.5611464/1000 -> 6366.132561 | E76: 6279.90735 | F76: 6192.757003 | G76: 2972.16197 | H76: 46,7%▲ | I76: Arbejdsskadeerstatninger (AES) medgår i 2023, men beklageligvis ikke i 2022. Udgifterne til AES er steget knap 1 mio. kr. fra 2022 til 2023
A77: Holbæk Sygehus | B77: Skema 6.21: Vederlagsfri Lab. –ydelser og andre ydelser til praksissektoren | C77: 13668.56917 | D77: =14537564.8543094/1000 -> 14537.56485 | E77: 13251.7505 | F77: 12966.6783 | G77: -868.9956888 | H77: -6,0%
A78: Holbæk Sygehus | B78: Skema 6.22: Patienttransport | D78: 0 | E78: 0 | F78: 0 | G78: 0
A79: Holbæk Sygehus | B79: Skema 6.23: Serviceydelser til/fra andre institutioner eller sygehuse udenfor regionen | D79: 0 | E79: 0 | F79: 0 | G79: 0
A80: Holbæk Sygehus | B80: Skema 6.24: Udgifter til eksternt finansierede forskning | C80: -3.58059 | D80: =-1619.59/1000 -> -1.61959 | E80: 0.42655 | F80: -11.42545 | G80: -1.961 | H80: 121,1%▲ | I80: Uvæsentligt beløb
A81: Holbæk Sygehus | B81: Skema 6.25: Forebyggelse rettet mod praksissektoren og kommuner | D81: 0 | E81: 0 | F81: 0 | G81: 0
A82: Holbæk Sygehus | B82: Skema 6.26: Praksisreservelæger | D82: 0 | E82: 0 | F82: 0 | G82: 0
A83: Holbæk Sygehus | B83: Skema 6.27: Præhospital | C83: 381.84 | D83: =381840/1000 -> 381.84 | E83: 398.47245 | F83: 328.64 | G83: 0 | H83: 0,0%
A84: Holbæk Sygehus | B84: Skema 6.28: Udgifter til Danske Regioner (Kontigent, MedCom, Fællesproj.) | D84: 0 | E84: 0 | F84: 0 | G84: 0
A85: Holbæk Sygehus | B85: Skema 6.29: Hospice | D85: 0 | E85: 0 | F85: 0 | G85: 0
A86: Holbæk Sygehus | B86: Skema 6.30: Konsulenter(Praksis) | C86: 685.35357 | D86: =578435.84/1000 -> 578.43584 | E86: 355.64968 | F86: 403.84156 | G86: 106.91773 | H86: 18,5%▲ | I86: Uvæsentligt beløb
A87: Holbæk Sygehus | B87: Skema 6.31: Videnskabsetisk Komité | D87: 0 | E87: 0 | F87: 0 | G87: 0
A88: Holbæk Sygehus | B88: Skema 6.32: Tolkebistand | C88: 361.70965 | D88: =306146.8/1000 -> 306.1468 | E88: 291.5745 | F88: 282.20825 | G88: 55.56285 | H88: 18,1%▲ | I88: Uvæsentligt beløb
A89: Holbæk Sygehus | B89: Skema 6.33: Dansk Center for Partikelterapi | D89: 0 | E89: 0 | F89: 0 | G89: 0
A90: Holbæk Sygehus | B90: Skema 6.34: Politisk organisation – overførte udgifter fra funktion 4.10.01, 4.10.02 og 4.10.04 | D90: 0 | E90: 0 | F90: 0 | G90: 0
A91: Holbæk Sygehus | B91: Skema 6.35: Øvrige udgifter, Region Sjælland | D91: 0 | E91: 0 | F91: 0 | G91: 0
A92: Holbæk Sygehus | B92: Skema 6.36: Sundhedsydelser ifm. specialsektor | D92: 0 | E92: 0 | F92: 0 | G92: 0
A93: Holbæk Sygehus | B93: Skema 6.37: Udgifter til primær sundhed fra skema 2 | D93: 0 | E93: 0 | F93: 0 | G93: 0
A94: Holbæk Sygehus | B94: Skema 6.38: Udgifter til primær sundhed fra skema 3 | D94: 0 | E94: 0 | F94: 0 | G94: 0
A95: Holbæk Sygehus | B95: Skema 6.39: Særlige udgifter ifm. COVID-19 | D95: =70148363.14/1000 -> 70148.36314 | E95: 77892.60707 | F95: 45200.71811 | G95: -70148.36314 | H95: -100,0%▼ | I95: Ikke relevant længere
A96: Holbæk Sygehus | B96: Skema 6.40: Udleveret udstyr/tilbehør ifm. cochlear implantater | D96: 0 | E96: 0 | G96: 0
A97: Holbæk Sygehus | B97: Skema 6.41: Luxturna-behandling, Rigshospitalet | D97: 0 | E97: 0 | G97: 0
A98: Holbæk Sygehus | B98: Skema 6.42: Udleveret medicin | C98: 24060.33225 | D98: =22955170.45/1000 -> 22955.17045 | E98: 17963.0695 | G98: 1105.1618 | H98: 4,8%
A99: Holbæk Sygehus | B99: Skema 6.43: Udgifter ifm. sundhedsklynger | C99: 503 | D99: 0 | G99: 503
A100: Holbæk Sygehus | B100: Skema 6.44: Ukrainske patienter under særlov eller asyl | D100: 0 | G100: 0
A101: Holbæk Sygehus | B101: Skema 6.45: Udgifter ifm. de særlige pladser i psykiatrien | G101: 0
A102: Holbæk Sygehus | B102: Skema 6.46: Sikringsafdelingen, Region Sjælland | G102: 0
A103: Holbæk Sygehus | B103: Skema 6.47: Øvrige (Kan kun benyttes efter aftale med Sundhedsdatastyrelsen) | D103: 0 | E103: 0 | F103: 0 | G103: 0
A104: Holbæk Sygehus | B104: Lukkede poster (må kun bruges af Sundhedsdatastyrelsen) | F104: 0 | G104: 0
A105: Holbæk Sygehus | B105: I alt | C105: =SUMIFS((C7:C104),(A7:A104),A105) -> 51751.41392 | D105: =SUMIFS((D7:D104),(A7:A104),A105) -> 117838.6972 | E105: =SUMIFS((E7:E104),(A7:A104),A105) -> 118700.0697 | F105: =SUMIFS((F7:F104),(A7:A104),A105) -> 67745.25905 | G105: -66087.28328 | H105: -56,1%▼
A106: Næstved, Slagelse og Ringsted Sygehuse | G106: 0
A107: Næstved, Slagelse og Ringsted Sygehuse | B107: Skema 6.1: Center for voldsramte (Bispebjerg) | G107: 0
A108: Næstved, Slagelse og Ringsted Sygehuse | B108: Skema 6.2: Ventilatørbistand i hjemmet, respiratorpatienter | G108: 0
A109: Næstved, Slagelse og Ringsted Sygehuse | B109: Skema 6.3: Blodprøvetagning i eget hjem | C109: 2541.415889 | D109: 2603.061 | E109: 2491.093619 | F109: 2426.522824 | G109: -61.64511132 | H109: -2,4%
A110: Næstved, Slagelse og Ringsted Sygehuse | B110: Skema 6.4: Psykinfo + pårørende | G110: 0
A111: Næstved, Slagelse og Ringsted Sygehuse | B111: Skema 6.5: Leveret udstyr til patienter i eget hjem, ilt og sonderemedier | C111: 1843.509452 | D111: 1888.226 | E111: 2794.45423 | F111: 4897.63781 | G111: -44.71654793 | H111: -2,4%
A112: Næstved, Slagelse og Ringsted Sygehuse | B112: Skema 6.6: Montebello (Nordsjællands Hospitaler) | G112: 0
A113: Næstved, Slagelse og Ringsted Sygehuse | B113: Skema 6.7: Satspulje korrektioner mellem år | G113: 0
A114: Næstved, Slagelse og Ringsted Sygehuse | B114: Skema 6.8: Klinisk farmakologisk rådgivning af praksissektoren | G114: 0
A115: Næstved, Slagelse og Ringsted Sygehuse | B115: Skema 6.9: Tandregulering ifm. operation | G115: 0
A116: Næstved, Slagelse og Ringsted Sygehuse | B116: Skema 6.10: Giftlinjen | G116: 0
A117: Næstved, Slagelse og Ringsted Sygehuse | B117: Skema 6.11: Tjenestemandspensioner | G117: 0
A118: Næstved, Slagelse og Ringsted Sygehuse | B118: Skema 6.12: Art 4.6 Betalinger til staten | G118: 0
A119: Næstved, Slagelse og Ringsted Sygehuse | B119: Skema 6.13: Art 4.7 Betalinger til kommuner | G119: 0
A120: Næstved, Slagelse og Ringsted Sygehuse | B120: Skema 6.14: Art 4.8 Betalinger til andre regioner | G120: 0
A121: Næstved, Slagelse og Ringsted Sygehuse | B121: Skema 6.15: Art 7.6 Betalinger fra staten | G121: 0
A122: Næstved, Slagelse og Ringsted Sygehuse | B122: Skema 6.16: Art 7.7 Betalinger fra kommuner | G122: 0
A123: Næstved, Slagelse og Ringsted Sygehuse | B123: Skema 6.17: Art 7.8 Betalinger fra andre regioner | G123: 0
A124: Næstved, Slagelse og Ringsted Sygehuse | B124: Skema 6.18: Betalinger til selvejende, private og udenlandske sygehuse | G124: 0
A125: Næstved, Slagelse og Ringsted Sygehuse | B125: Skema 6.19: Dækningsafgift/ejendomsskat | C125: 7014.318 | D125: 7215.293 | E125: 7411.75922 | F125: 7239.826379 | G125: -200.975 | H125: -2,8%
A126: Næstved, Slagelse og Ringsted Sygehuse | B126: Skema 6.20: Forsikringer/erstatninger | C126: 10078.37 | D126: 10489.169 | E126: 10387.24702 | F126: 11310.89981 | G126: -410.799 | H126: -3,9%
A127: Næstved, Slagelse og Ringsted Sygehuse | B127: Skema 6.21: Vederlagsfri Lab. –ydelser og andre ydelser til praksissektoren | C127: 42195.37131 | D127: 43218.871 | E127: 46200.18007 | F127: 46685.9137 | G127: -1023.499685 | H127: -2,4%
A128: Næstved, Slagelse og Ringsted Sygehuse | B128: Skema 6.22: Patienttransport | F128: 0 | G128: 0
A129: Næstved, Slagelse og Ringsted Sygehuse | B129: Skema 6.23: Serviceydelser til/fra andre institutioner eller sygehuse udenfor regionen | G129: 0
A130: Næstved, Slagelse og Ringsted Sygehuse | B130: Skema 6.24: Udgifter til eksternt finansierede forskning | D130: 497.651 | E130: -8.87142 | F130: 688.8233 | G130: -497.651 | H130: -100,0%▼ | I130: Forskydning i hhv. indtægter og udgifter til eksternt finansieret forskning.
A131: Næstved, Slagelse og Ringsted Sygehuse | B131: Skema 6.25: Forebyggelse rettet mod praksissektoren og kommuner | G131: 0
A132: Næstved, Slagelse og Ringsted Sygehuse | B132: Skema 6.26: Praksisreservelæger | G132: 0
A133: Næstved, Slagelse og Ringsted Sygehuse | B133: Skema 6.27: Præhospital | C133: 0 | E133: 1453.027 | F133: 1323.998316 | G133: 0 | I133: Anæstesilæger i Næstved tager vagter i Præhospitalt Center. Fra og med 2022 aflønnes de direkte af Præhospitalt Center
A134: Næstved, Slagelse og Ringsted Sygehuse | B134: Skema 6.28: Udgifter til Danske Regioner (Kontigent, MedCom, Fællesproj.) | G134: 0
A135: Næstved, Slagelse og Ringsted Sygehuse | B135: Skema 6.29: Hospice | F135: 0 | G135: =IF(ISERROR(C135- D135)=TRUE,"",C135 - D135) -> 0 | H135: =IF(ISERROR((((C135- D135)/D135)*100)=TRUE),"",IF((((C135- D135)/D135)*100)<-7,FIXED(((C135- D135)/D135)*100, 1,TRUE) &"%" & "▼",IF((((C135- D135)/D135)*100)>7,FIXED(((C135- D135)/D135)*100, 1,TRUE) &"%" &"▲",FIXED(((C135- D135)/D135)*100, 1,TRUE)&"%"))) -> 
A136: Næstved, Slagelse og Ringsted Sygehuse | B136: Skema 6.30: Konsulenter(Praksis) | C136: 229.4699298 | D136: 235.036 | E136: 2726.17842 | F136: 141.89612 | G136: -5.566070247 | H136: -2,4%
A137: Næstved, Slagelse og Ringsted Sygehuse | B137: Skema 6.31: Videnskabsetisk Komité | G137: 0
A138: Næstved, Slagelse og Ringsted Sygehuse | B138: Skema 6.32: Tolkebistand | C138: 494.376 | D138: 443.604 | E138: 361.0005 | F138: 133.5665 | G138: 50.772 | H138: 11,4%▲ | I138: I 2023 har der været et større behov for tolkebistand.
A139: Næstved, Slagelse og Ringsted Sygehuse | B139: Skema 6.33: Dansk Center for Partikelterapi | G139: 0
A140: Næstved, Slagelse og Ringsted Sygehuse | B140: Skema 6.34: Politisk organisation – overførte udgifter fra funktion 4.10.01, 4.10.02 og 4.10.04 | G140: 0
A141: Næstved, Slagelse og Ringsted Sygehuse | B141: Skema 6.35: Øvrige udgifter, Region Sjælland | E141: 1614.36718 | F141: 1374.45591 | G141: 0 | I141: Kompetencecenter for lungesygdom er i 2022 overgået til Det Nære Sundhedsvæsen i Region Sjælland
A142: Næstved, Slagelse og Ringsted Sygehuse | B142: Skema 6.36: Sundhedsydelser ifm. specialsektor | G142: 0
A143: Næstved, Slagelse og Ringsted Sygehuse | B143: Skema 6.37: Udgifter til primær sundhed fra skema 2 | G143: 0
A144: Næstved, Slagelse og Ringsted Sygehuse | B144: Skema 6.38: Udgifter til primær sundhed fra skema 3 | G144: 0
A145: Næstved, Slagelse og Ringsted Sygehuse | B145: Skema 6.39: Særlige udgifter ifm. COVID-19 | D145: 116300 | E145: 96204.2098 | F145: 66754.33083 | G145: -116300 | H145: -100,0%▼ | I145: Ikke relevant længere
A146: Næstved, Slagelse og Ringsted Sygehuse | B146: Skema 6.40: Udleveret udstyr/tilbehør ifm. cochlear implantater | G146: 0
A147: Næstved, Slagelse og Ringsted Sygehuse | B147: Skema 6.41: Luxturna-behandling, Rigshospitalet | G147: 0
A148: Næstved, Slagelse og Ringsted Sygehuse | B148: Skema 6.42: Udleveret medicin | C148: 25262.48794 | D148: 28479.1 | E148: 24656.83736 | G148: -3216.61206 | H148: -11,3%▼ | I148: Stigende behov for udlevering af medicin
A149: Næstved, Slagelse og Ringsted Sygehuse | B149: Skema 6.43: Udgifter ifm. sundhedsklynger | G149: 0
A150: Næstved, Slagelse og Ringsted Sygehuse | B150: Skema 6.44: Ukrainske patienter under særlov eller asyl | G150: 0
A151: Næstved, Slagelse og Ringsted Sygehuse | B151: Skema 6.45: Udgifter ifm. de særlige pladser i psykiatrien | G151: 0
A152: Næstved, Slagelse og Ringsted Sygehuse | B152: Skema 6.46: Sikringsafdelingen, Region Sjælland | G152: 0
A153: Næstved, Slagelse og Ringsted Sygehuse | B153: Skema 6.47: Øvrige (Kan kun benyttes efter aftale med Sundhedsdatastyrelsen) | G153: 0
A154: Næstved, Slagelse og Ringsted Sygehuse | B154: Lukkede poster (må kun bruges af Sundhedsdatastyrelsen) | G154: 0
A155: Næstved, Slagelse og Ringsted Sygehuse | B155: I alt | C155: =SUMIFS((C7:C154),(A7:A154),A155) -> 89659.31853 | D155: =SUMIFS((D7:D154),(A7:A154),A155) -> 211370.011 | E155: =SUMIFS((E7:E154),(A7:A154),A155) -> 196291.483 | F155: =SUMIFS((F7:F154),(A7:A154),A155) -> 142977.8715 | G155: -121710.6925 | H155: -57,6%▼
A156: Nykøbing F, Sygehus | G156: 0
A157: Nykøbing F, Sygehus | B157: Skema 6.1: Center for voldsramte (Bispebjerg) | G157: 0
A158: Nykøbing F, Sygehus | B158: Skema 6.2: Ventilatørbistand i hjemmet, respiratorpatienter | G158: 0
A159: Nykøbing F, Sygehus | B159: Skema 6.3: Blodprøvetagning i eget hjem | G159: 0
A160: Nykøbing F, Sygehus | B160: Skema 6.4: Psykinfo + pårørende | G160: 0
A161: Nykøbing F, Sygehus | B161: Skema 6.5: Leveret udstyr til patienter i eget hjem, ilt og sonderemedier | C161: 981.5227028 | D161: 713.335 | E161: 676.694416 | F161: =721597.817/1000 -> 721.597817 | G161: 268.1877028 | H161: 37,6%▲ | I161: Refusion til patienter (strøm m.m.) er steget pga stigende elpriser
A162: Nykøbing F, Sygehus | B162: Skema 6.6: Montebello (Nordsjællands Hospitaler) | G162: 0
A163: Nykøbing F, Sygehus | B163: Skema 6.7: Satspulje korrektioner mellem år | G163: 0
A164: Nykøbing F, Sygehus | B164: Skema 6.8: Klinisk farmakologisk rådgivning af praksissektoren | G164: 0
A165: Nykøbing F, Sygehus | B165: Skema 6.9: Tandregulering ifm. operation | G165: 0
A166: Nykøbing F, Sygehus | B166: Skema 6.10: Giftlinjen | G166: 0
A167: Nykøbing F, Sygehus | B167: Skema 6.11: Tjenestemandspensioner | G167: 0
A168: Nykøbing F, Sygehus | B168: Skema 6.12: Art 4.6 Betalinger til staten | G168: 0
A169: Nykøbing F, Sygehus | B169: Skema 6.13: Art 4.7 Betalinger til kommuner | G169: 0
A170: Nykøbing F, Sygehus | B170: Skema 6.14: Art 4.8 Betalinger til andre regioner | G170: 0
A171: Nykøbing F, Sygehus | B171: Skema 6.15: Art 7.6 Betalinger fra staten | G171: 0
A172: Nykøbing F, Sygehus | B172: Skema 6.16: Art 7.7 Betalinger fra kommuner | G172: 0
A173: Nykøbing F, Sygehus | B173: Skema 6.17: Art 7.8 Betalinger fra andre regioner | G173: 0
A174: Nykøbing F, Sygehus | B174: Skema 6.18: Betalinger til selvejende, private og udenlandske sygehuse | G174: 0
A175: Nykøbing F, Sygehus | B175: Skema 6.19: Dækningsafgift/ejendomsskat | C175: 30.24966094 | D175: 30.157 | E175: 21.79793073 | F175: =3365429.13/1000 -> 3365.42913 | G175: 0.09266093984 | H175: 0,3%
A176: Nykøbing F, Sygehus | B176: Skema 6.20: Forsikringer/erstatninger | C176: 6405.376384 | D176: 6144.071 | E176: 6125.207342 | F176: =5207635.62/1000 -> 5207.63562 | G176: 261.3053842 | H176: 4,3%
A177: Nykøbing F, Sygehus | B177: Skema 6.21: Vederlagsfri Lab. –ydelser og andre ydelser til praksissektoren | C177: 4190.869275 | D177: 4250.473 | E177: 4159.157375 | F177: =3953980.00296/1000 -> 3953.980003 | G177: -59.6037251 | H177: -1,4%
A178: Nykøbing F, Sygehus | B178: Skema 6.22: Patienttransport | E178: 0 | F178: =8014.65/1000 -> 8.01465 | G178: 0
A179: Nykøbing F, Sygehus | B179: Skema 6.23: Serviceydelser til/fra andre institutioner eller sygehuse udenfor regionen | D179: -400.24 | G179: 400.24 | H179: -100,0%▼ | I179: Dette tal for 2022 står forkert, da det vedrører forskning
A180: Nykøbing F, Sygehus | B180: Skema 6.24: Udgifter til eksternt finansierede forskning | C180: -538.184 | G180: -538.184
A181: Nykøbing F, Sygehus | B181: Skema 6.25: Forebyggelse rettet mod praksissektoren og kommuner | D181: 0 | E181: 3.224 | F181: =47997/1000 -> 47.997 | G181: 0
A182: Nykøbing F, Sygehus | B182: Skema 6.26: Praksisreservelæger | G182: 0
A183: Nykøbing F, Sygehus | B183: Skema 6.27: Præhospital | C183: 627.1984284 | D183: 597.714 | E183: 646.3824571 | F183: =586362.7995/1000 -> 586.3627995 | G183: 29.4844284 | H183: 4,9%
A184: Nykøbing F, Sygehus | B184: Skema 6.28: Udgifter til Danske Regioner (Kontigent, MedCom, Fællesproj.) | G184: 0
A185: Nykøbing F, Sygehus | B185: Skema 6.29: Hospice | G185: 0
A186: Nykøbing F, Sygehus | B186: Skema 6.30: Konsulenter(Praksis) | C186: 549.55187 | D186: 528.753 | E186: 451.8325073 | F186: =303368.74/1000 -> 303.36874 | G186: 20.79887 | H186: 3,9%
A187: Nykøbing F, Sygehus | B187: Skema 6.31: Videnskabsetisk Komité | G187: 0
A188: Nykøbing F, Sygehus | B188: Skema 6.32: Tolkebistand | C188: 116.03651 | D188: 131.816 | E188: 125.4755 | F188: =147695/1000 -> 147.695 | G188: -15.77949 | H188: -12,0%▼ | I188: Uvæsentlige udsving
A189: Nykøbing F, Sygehus | B189: Skema 6.33: Dansk Center for Partikelterapi | G189: 0
A190: Nykøbing F, Sygehus | B190: Skema 6.34: Politisk organisation – overførte udgifter fra funktion 4.10.01, 4.10.02 og 4.10.04 | G190: 0
A191: Nykøbing F, Sygehus | B191: Skema 6.35: Øvrige udgifter, Region Sjælland | G191: 0
A192: Nykøbing F, Sygehus | B192: Skema 6.36: Sundhedsydelser ifm. specialsektor | G192: 0
A193: Nykøbing F, Sygehus | B193: Skema 6.37: Udgifter til primær sundhed fra skema 2 | G193: 0
A194: Nykøbing F, Sygehus | B194: Skema 6.38: Udgifter til primær sundhed fra skema 3 | G194: 0
A195: Nykøbing F, Sygehus | B195: Skema 6.39: Særlige udgifter ifm. COVID-19 | C195: 0 | D195: 38658 | E195: 48462.83518 | F195: =30490572.3931866/1000 -> 30490.57239 | G195: -38658 | H195: -100,0%▼ | I195: Ikke relevant længere
A196: Nykøbing F, Sygehus | B196: Skema 6.40: Udleveret udstyr/tilbehør ifm. cochlear implantater | G196: 0
A197: Nykøbing F, Sygehus | B197: Skema 6.41: Luxturna-behandling, Rigshospitalet | G197: 0
A198: Nykøbing F, Sygehus | B198: Skema 6.42: Udleveret medicin | C198: 781.114 | D198: 873.908 | E198: 1700.02718 | G198: -92.794 | H198: -10,6%▼ | I198: Almindelige udsving
A199: Nykøbing F, Sygehus | B199: Skema 6.43: Udgifter ifm. sundhedsklynger | G199: =IF(ISERROR(C199- D199)=TRUE,"",C199 - D199) -> 0 | H199: =IF(ISERROR((((C199- D199)/D199)*100)=TRUE),"",IF((((C199- D199)/D199)*100)<-7,FIXED(((C199- D199)/D199)*100, 1,TRUE) &"%" & "▼",IF((((C199- D199)/D199)*100)>7,FIXED(((C199- D199)/D199)*100, 1,TRUE) &"%" &"▲",FIXED(((C199- D199)/D199)*100, 1,TRUE)&"%"))) -> 
A200: Nykøbing F, Sygehus | B200: Skema 6.44: Ukrainske patienter under særlov eller asyl | G200: 0
A201: Nykøbing F, Sygehus | B201: Skema 6.45: Udgifter ifm. de særlige pladser i psykiatrien | G201: 0
A202: Nykøbing F, Sygehus | B202: Skema 6.46: Sikringsafdelingen, Region Sjælland | G202: 0
... 253 more rows

Sheet Skema 7
A1: Region Sjælland, somatiske sygehuse.
B2: Skema 7: Vederlagsfrie ydelser mellem sygehusene. (1.000 kr.)
A5: Sygehus | B5: 2023 | D5: 2023 | E5: 2022 | G5: 2022 | H5: 2021 | J5: 2021 | K5: 2020 | M5: 2020
B6: Leverede | C6: Modtagne | D6: Lev. - Mod. | E6: Leverede | F6: Modtagne | G6: Lev. - Mod. | H6: Leverede | I6: Modtagne | J6: Lev. - Mod. | K6: Leverede | L6: Modtagne | M6: Lev. - Mod.
A7: Sjællands Universitetshospital | B7: 139065.3438 | C7: 74785.61121 | D7: =$B$7-$C$7 -> 64279.73256 | E7: 114884.638 | F7: 88901.902 | G7: =$E$7-$F$7 -> 25982.736 | H7: 109892.5351 | I7: 66413.25677 | J7: =$H$7-$I$7 -> 43479.27836 | K7: 106778.5712 | L7: 70630.18355 | M7: =$K$7-$L$7 -> 36148.38768
A8: Holbæk Sygehus | B8: 17473.03274 | C8: 43629.55746 | D8: =$B$8-$C$8 -> -26156.52473 | E8: 33347.598 | F8: 41269.253 | G8: =$E$8-$F$8 -> -7921.655 | H8: 13936.497 | I8: 37311.373 | J8: =$H$8-$I$8 -> -23374.876 | K8: 13879.841 | L8: 35271.256 | M8: =$K$8-$L$8 -> -21391.415
A9: Næstved, Slagelse og Ringsted Sygehuse | B9: 61049.11203 | C9: 65812.10929 | D9: =$B$9-$C$9 -> -4762.997259 | E9: 93828.665 | F9: 49796.599 | G9: =$E$9-$F$9 -> 44032.066 | H9: 84292.79209 | I9: 54303.17131 | J9: =$H$9-$I$9 -> 29989.62078 | K9: 88620.54187 | L9: 52409.11689 | M9: =$K$9-$L$9 -> 36211.42498
A10: Nykøbing F. Sygehus | B10: 20022.23618 | C10: 44921.99126 | D10: =$B$10-$C$10 -> -24899.75508 | E10: 25484.307 | F10: 78541.853 | G10: =$E$10-$F$10 -> -53057.546 | H10: 24902.97928 | I10: 66299.27032 | J10: =$H$10-$I$10 -> -41396.29104 | K10: =20670705/1000 -> 20670.705 | L10: =63157288/1000 -> 63157.288 | M10: =$K$10-$L$10 -> -42486.583
A11: Sygehus Nord | D11: =$B$11-$C$11 -> 0 | G11: =$E$11-$F$11 -> 0 | J11: =$H$11-$I$11 -> 0 | M11: =$K$11-$L$11 -> 0
A12: Sygehus Syd | D12: =$B$12-$C$12 -> 0 | G12: =$E$12-$F$12 -> 0 | J12: =$H$12-$I$12 -> 0 | M12: =$K$12-$L$12 -> 0
A13: Garantiklinikken | D13: =$B$13-$C$13 -> 0 | G13: =$E$13-$F$13 -> 0 | J13: =$H$13-$I$13 -> 0 | M13: =$K$13-$L$13 -> 0
A14: Øvrige i Region Sjælland | D14: =$B$14-$C$14 -> 0 | G14: =$E$14-$F$14 -> 0 | J14: =$H$14-$I$14 -> 0 | M14: =$K$14-$L$14 -> 0
A15: Ikke fordelte udgifter Region Sjælland, somatik | D15: =$B$15-$C$15 -> 0 | G15: =$E$15-$F$15 -> 0 | J15: =$H$15-$I$15 -> 0 | M15: =$K$15-$L$15 -> 0
A16: I alt | B16: =SUM(B7:B15) -> 237609.7247 | C16: =SUM(C7:C15) -> 229149.2692 | D16: =SUM(D7:D15) -> 8460.455493 | E16: =SUM(E7:E15) -> 267545.208 | F16: 258509.607 | G16: 9035.601 | H16: 233024.8035 | I16: 224327.0714 | J16: 8697.732094 | K16: =SUM(K7:K15) -> 229949.6591 | L16: 221467.8444 | M16: 8481.814657
A18: NB: Afstem med psykiatrien

Sheet Rapport
B2: Skema 1: Udgifter og indtægter på sygehusene/enhederne, eksklusiv omkostningssted 0001, Fælleskonto. (1.000 kr.)
C3: 2023 | D3: 2022 | E3: 2021 | F3: 2020
B4: Hovedart 1: Lønninger | C4: 6443779.931 | D4: 6302916.06 | E4: 5914031.458 | F4: 5623207.286
B5: Hovedart 2: Varekøb | C5: 1042178.437 | D5: 1031875.172 | E5: 1027846.547 | F5: 1115507.268
B6: Hovedart 4: Tjenesteydelser m.v. | C6: 981364.732 | D6: 941298.4965 | E6: 866305.2374 | F6: 708003.3658
B7: Hovedart 5: Tilskud og overførsler | C7: 4770.42731 | D7: 4316.51865 | E7: 3259.05472 | F7: 3269.25239
B8: Hovedart 6: Finansudgifter | C8: 475.78 | D8: 0 | E8: -2992 | F8: 661.80723
B9: Hovedart 7: Indtægter | C9: -422421.2826 | D9: -300495.9187 | E9: -308732.7821 | F9: -254620.039
B10: Hovedart 8: Finansindtægter | C10: -478.398 | D10: 0 | E10: 0 | F10: 0
B11: Hovedart 9: Interne udgifter og indtægter | C11: 1213772.891 | D11: 1255792.26 | E11: 1236426.01 | F11: 1243378.415
B12: I alt | C12: 9263442.517 | D12: 9235702.588 | E12: 8736143.525 | F12: 8439407.355
B14: Skema 2: Fællesudgifter og -indtægter vedrørende sygehusene. (1.000 kr.)
C15: 2023 | D15: 2022 | E15: 2021 | F15: 2020
B16: Hovedart 1: Lønninger | C16: 913638.2961 | D16: 968529.4666 | E16: 1191187.977 | F16: 770609.1326
B17: Hovedart 2: Varekøb | C17: 1100231.749 | D17: 1147054.131 | E17: 1228473.08 | F17: 1141344.874
B18: Hovedart 4: Tjenesteydelser m.v. | C18: 4358317.789 | D18: 4791535.011 | E18: 4318354.748 | F18: 4175977.808
B19: Hovedart 5: Tilskud og overførsler | C19: 144576.6427 | D19: 199988.0845 | E19: 129569.9726 | F19: 134192.2966
B20: Hovedart 6: Finansudgifter | C20: 0 | D20: 0.31 | E20: -146.76028 | F20: -124.7277603
B21: Hovedart 7: Indtægter | C21: -675360.4101 | D21: -1039505.385 | E21: -1148151.538 | F21: -538529.3414
B22: Hovedart 8: Finansindtægter | C22: -388.1168528 | D22: 0 | E22: 0 | F22: -69600
B23: Hovedart 9: Interne udgifter og indtægter | C23: -1223855.633 | D23: -1189291.938 | E23: -1171494.193 | F23: -1183446.55
B24: I alt | C24: 4617160.317 | D24: 4878309.681 | E24: 4547793.286 | F24: 4430423.493
B26: Skema 3: Regionale fællesudgifter og -indtægter. (1.000 kr.)
C27: 2023 | D27: 2022 | E27: 2021 | F27: 2020
B28: 1.70.50: Andel af fællesudgifter | C28: 863932.4849 | D28: 837262.5199 | E28: 1183947.059 | F28: 859804.379
B29: 1.60.40: Andel af central administration af sundhed (til og med 2019) | C29: 0 | D29: 0 | E29: 0 | F29: 0
B30: 1.60.41: Andel af øvrige udgifter og indtægter | C30: 0 | D30: 0 | E30: 0 | F30: 0
B31: 1.50.33: Andel af central administration af sundhed (ekskl. psykiatri) | C31: 0 | D31: 0 | E31: 0 | F31: 0
B32: 1.50.35: Administration af det psykiatriske område (kun central del) | C32: 0 | D32: 0 | E32: 0 | F32: 0
B33: I alt | C33: 863932.4849 | D33: 837262.5199 | E33: 1183947.059 | F33: 859804.379
B35: Skema 4: Udgifter og indtægter til og fra psykiatriske afdelinger konteret på somatiske sygehuse. (1.000 kr.)
C36: 2023 | D36: 2022 | E36: 2021 | F36: 2020
B37: Korrektion | C37: 0 | D37: 0 | E37: 0 | F37: 0
B38: Lønudg. på psyk. afd.,somatiske sygehuse | C38: 0 | D38: 0 | E38: 0 | F38: 0
B39: Øvrige udg. til psyk. afd.,somatiske sygehuse | C39: 0 | D39: 0 | E39: 0 | F39: 0
B40: I alt | C40: 0 | D40: 0 | E40: 0 | F40: 0
B42: Skema 5: Leasing- og huslejeudgifter. (1.000 kr.)
C43: 2023 | D43: 2022 | E43: 2021 | F43: 2020
B44: Andre udgifter | C44: 0 | D44: 0 | E44: 0 | F44: 0
B45: Leasing- og lejeudgifter | C45: 71944.3661 | D45: 54580.40023 | E45: 49162.35252 | F45: 72084.56447
B46: Huslejeudgifter | C46: 52472.56797 | D46: 46339.39023 | E46: 33744.26262 | F46: 34062.61135
B47: I alt | C47: 124416.9341 | D47: 100919.7905 | E47: 82906.61514 | F47: 106147.1758
B49: Skema 6: Udgifter til andet end patientbehandling. (1.000 kr.)
C50: 2023 | D50: 2022 | E50: 2021 | F50: 2020
B51: Skema 6.1: Center for voldsramte (Bispebjerg) | C51: 0 | D51: 0 | E51: 0 | F51: 0
B52: Skema 6.2: Ventilatørbistand i hjemmet, respiratorpatienter | C52: 0 | D52: 0 | E52: 0 | F52: 0
B53: Skema 6.3: Blodprøvetagning i eget hjem | C53: 6205.54172 | D53: 6147.763549 | E53: 5707.631121 | F53: 5752.608094
B54: Skema 6.4: Psykinfo + pårørende | C54: 0 | D54: 0 | E54: 0 | F54: 0
B55: Skema 6.5: Leveret udstyr til patienter i eget hjem, ilt og sonderemedier | C55: 4279.804397 | D55: 3841.109382 | E55: 4508.215653 | F55: 6623.334942
B56: Skema 6.6: Montebello (Nordsjællands Hospitaler) | C56: 0 | D56: 0 | E56: 0 | F56: 0
B57: Skema 6.7: Satspulje korrektioner mellem år | C57: 0 | D57: 0 | E57: 0 | F57: 0
B58: Skema 6.8: Klinisk farmakologisk rådgivning af praksissektoren | C58: 0 | D58: 0 | E58: 0 | F58: 0
B59: Skema 6.9: Tandregulering ifm. operation | C59: 0 | D59: 0 | E59: 0 | F59: 0
B60: Skema 6.10: Giftlinjen | C60: 0 | D60: 0 | E60: 0 | F60: 0
B61: Skema 6.11: Tjenestemandspensioner | C61: 325415.6673 | D61: 324018.1786 | E61: 696143.1375 | F61: 453549.1562
B62: Skema 6.12: Art 4.6 Betalinger til staten | C62: 0 | D62: 0 | E62: 0 | F62: 0
B63: Skema 6.13: Art 4.7 Betalinger til kommuner | C63: 60538.27164 | D63: 48092.77508 | E63: 52128.67819 | F63: 66893.09677
B64: Skema 6.14: Art 4.8 Betalinger til andre regioner | C64: 2222401.86 | D64: 2429323.261 | E64: 2211092.214 | F64: 2320087.438
B65: Skema 6.15: Art 7.6 Betalinger fra staten | C65: -214307.128 | D65: -218500.8537 | E65: -226005.1353 | F65: -233714.9565
B66: Skema 6.16: Art 7.7 Betalinger fra kommuner | C66: -60494.98631 | D66: -65615.4862 | E66: -67009.18792 | F66: -64605.89465
B67: Skema 6.17: Art 7.8 Betalinger fra andre regioner | C67: -115413.318 | D67: -104875.526 | E67: -106857.1705 | F67: -85278.7744
B68: Skema 6.18: Betalinger til selvejende, private og udenlandske sygehuse | C68: 585387.8565 | D68: 574380.8642 | E68: 490334.0473 | F68: 347810.0403
B69: Skema 6.19: Dækningsafgift/ejendomsskat | C69: 7369.939262 | D69: 16527.76628 | E69: 15284.33744 | F69: 21388.05179
B70: Skema 6.20: Forsikringer/erstatninger | C70: 179697.1094 | D70: 218841.2399 | E70: 142510.4893 | F70: 214915.0438
B71: Skema 6.21: Vederlagsfri Lab. –ydelser og andre ydelser til praksissektoren | C71: 209741.5828 | D71: 203203.9736 | E71: 199108.6204 | F71: 190440.2551
B72: Skema 6.22: Patienttransport | C72: 797222.1678 | D72: 781175.8183 | E72: 800281.8056 | F72: 708456.9095
B73: Skema 6.23: Serviceydelser til/fra andre institutioner eller sygehuse udenfor regionen | C73: 3263.100372 | D73: 2628.206348 | E73: 2701.813793 | F73: 2626.275493
B74: Skema 6.24: Udgifter til eksternt finansierede forskning | C74: -901.02246 | D74: 177.06859 | E74: -1000.26871 | F74: 468.19337
B75: Skema 6.25: Forebyggelse rettet mod praksissektoren og kommuner | C75: 0 | D75: 0 | E75: 3.224 | F75: 239.93113
B76: Skema 6.26: Praksisreservelæger | C76: 0 | D76: 0 | E76: 0 | F76: 0
B77: Skema 6.27: Præhospital | C77: 1009.038428 | D77: 979.554 | E77: 2497.881907 | F77: 2239.001116
B78: Skema 6.28: Udgifter til Danske Regioner (Kontigent, MedCom, Fællesproj.) | C78: 66197.46431 | D78: 67655.05356 | E78: 66252.80041 | F78: 54784.12419
B79: Skema 6.29: Hospice | C79: 0 | D79: 0 | E79: 0 | F79: 0
B80: Skema 6.30: Konsulenter(Praksis) | C80: 2258.62537 | D80: 1980.59268 | E80: 4161.104167 | F80: 1044.98164
B81: Skema 6.31: Videnskabsetisk Komité | C81: 0 | D81: 0 | E81: 0 | F81: 0
B82: Skema 6.32: Tolkebistand | C82: 2469.80216 | D82: 2129.49159 | E82: 1997.35944 | F82: 1928.01948
B83: Skema 6.33: Dansk Center for Partikelterapi | C83: 0 | D83: 0 | E83: 0 | F83: 0
B84: Skema 6.34: Politisk organisation – overførte udgifter fra funktion 4.10.01, 4.10.02 og 4.10.04 | C84: 14228.93404 | D84: 14758.60688 | E84: 15346.49001 | F84: 13254.45449
B85: Skema 6.35: Øvrige udgifter, Region Sjælland | C85: 26582.37704 | D85: 34718.73728 | E85: 63711.90161 | F85: 31214.22082
B86: Skema 6.36: Sundhedsydelser ifm. specialsektor | C86: 0 | D86: 0 | E86: 0 | F86: 0
B87: Skema 6.37: Udgifter til primær sundhed fra skema 2 | C87: 379761.4635 | D87: 797946.9191 | E87: 979701.9782 | F87: 451374.7996
B88: Skema 6.38: Udgifter til primær sundhed fra skema 3 | C88: 219053.0583 | D88: 209528.7706 | E88: 200963.2908 | F88: 178504.9018
B89: Skema 6.39: Særlige udgifter ifm. COVID-19 | C89: 0 | D89: 113927.8608 | E89: -20947.42974 | F89: 392615.1198
B90: Skema 6.40: Udleveret udstyr/tilbehør ifm. cochlear implantater | C90: 0 | D90: 0 | E90: 0 | F90: 0
B91: Skema 6.41: Luxturna-behandling, Rigshospitalet | C91: 0 | D91: 0 | E91: 0 | F91: 0
B92: Skema 6.42: Udleveret medicin | C92: 232697.3507 | D92: 222772.0934 | E92: 225777.5824 | F92: 0
B93: Skema 6.43: Udgifter ifm. sundhedsklynger | C93: 503 | D93: 0 | E93: 0 | F93: 0
B94: Skema 6.44: Ukrainske patienter under særlov eller asyl | C94: 0 | D94: 0 | E94: 0 | F94: 0
B95: Skema 6.45: Udgifter ifm. de særlige pladser i psykiatrien | C95: 0 | D95: 0 | E95: 0 | F95: 0
B96: Skema 6.46: Sikringsafdelingen, Region Sjælland | C96: 0 | D96: 0 | E96: 0 | F96: 0
B97: Skema 6.47: Øvrige (Kan kun benyttes efter aftale med Sundhedsdatastyrelsen) | C97: 0 | D97: 0 | E97: 0 | F97: 0
B98: Lukkede poster (må kun bruges af Sundhedsdatastyrelsen) | C98: 0 | D98: 0 | E98: 0 | F98: 0
B99: I alt | C99: 4955167.561 | D99: 5685763.839 | E99: 5758395.411 | F99: 5082610.332

Sheet Rapport SGH
A1: 2023 | B1: Skema 1 | C1: Skema 2 | D1: Skema 3 | E1: Skema 4 | F1: Skema 5 | G1: Skema 6 | H1: Skema 7 | I1: I alt
A2: Sjællands Universitetshospital | B2: 4942933.936 | C2: 248345.9411 | D2: 261465.7175 | E2: 0 | F2: 58992.2446 | G2: 341302.3905 | H2: 64279.73256 | I2: =(SUM(B2:D2))-(SUM(E2:H2)) -> 4988171.227
A3: Holbæk Sygehus | B3: 1287004.352 | C3: 74801.97472 | D3: 74920.98409 | E3: 0 | F3: 10434.63629 | G3: 51751.41392 | H3: -26156.52473 | I3: =(SUM(B3:D3))-(SUM(E3:H3)) -> 1400697.786
A4: Næstved, Slagelse og Ringsted Sygehuse | B4: 2097605.619 | C4: 136680.7152 | D4: 117145.4001 | E4: 0 | F4: 48101.81 | G4: 89659.31853 | H4: -4762.997259 | I4: 2218433.603
A5: Nykøbing F. Sygehus | B5: 935898.61 | C5: 56692.98695 | D5: 51728.3803 | E5: 0 | F5: 6888.243184 | G5: 13143.73483 | H5: -24899.75508 | I5: 1049187.754
A6: Sygehus Nord | B6: 0 | C6: 0 | D6: 0 | E6: 0 | F6: 0 | G6: 0 | H6: 0 | I6: 0
A7: Sygehus Syd | B7: 0 | C7: 0 | D7: 0 | E7: 0 | F7: 0 | G7: 0 | H7: 0 | I7: 0
A8: Garantiklinikken | B8: 0 | C8: 0 | D8: 0 | E8: 0 | F8: 0 | G8: 0 | H8: 0 | I8: 0
A9: Øvrige i Region Sjælland | B9: 0 | C9: 0 | D9: 0 | E9: 0 | F9: 0 | G9: 0 | H9: 0 | I9: 0
A10: Ikke fordelte udgifter og indtægter | B10: 0 | C10: 4100638.699 | D10: 358672.003 | E10: 0 | F10: 0 | G10: 4459310.703 | H10: 0 | I10: -0.0007536001503
I11: =B11+C11+D11-E11-F11-G11-H11 -> 0
A12: 2022
A13: Sjællands Universitetshospital | B13: 4821877.772 | C13: 204021.0455 | D13: 244166.8168 | E13: 0 | F13: 39727.83886 | G13: 528072.8248 | H13: 25982.736 | I13: =(SUM(B13:D13))-(SUM(E13:H13)) -> 4676282.234
A14: Holbæk Sygehus | B14: 1343307.52 | C14: 70281.88516 | D14: 77112.20786 | E14: 0 | F14: 9907.408316 | G14: 117838.6972 | H14: -7921.655 | I14: 1370877.163
A15: Næstved, Slagelse og Ringsted Sygehuse | B15: 2148608.487 | C15: 127486.4422 | D15: 115937.2311 | E15: 0 | F15: 46153.99729 | G15: 211370.011 | H15: 44032.066 | I15: 2090476.086
A16: Nykøbing F. Sygehus | B16: 921908.809 | C16: 50872.00711 | D16: 48740.24699 | E16: 0 | F16: 5130.546 | G16: 51527.987 | H16: -53057.546 | I16: 1017920.076
A17: Sygehus Nord | B17: 0 | C17: 0 | D17: 0 | E17: 0 | F17: 0 | G17: 0 | H17: 0 | I17: 0
A18: Sygehus Syd | B18: 0 | C18: 0 | D18: 0 | E18: 0 | F18: 0 | G18: 0 | H18: 0 | I18: 0
A19: Garantiklinikken | B19: 0 | C19: 0 | D19: 0 | E19: 0 | F19: 0 | G19: 0 | H19: 0 | I19: 0
A20: Øvrige i Region Sjælland | B20: 0 | C20: 0 | D20: 0 | E20: 0 | F20: 0 | G20: 0 | H20: 0 | I20: 0
A21: Ikke fordelte udgifter og indtægter | B21: 0 | C21: 4425648.301 | D21: 351306.0172 | E21: 0 | F21: 0 | G21: 4776954.319 | H21: 0 | I21: -0.0001300601289

Sheet Afstemning af ikke fordelte
A1: Afstemning af Ikke fordelte indtægter- og udgifter
A2: 1.000 kr. | B2: 2023
A3: Skema 1 | B3: 0
A4: Skema 2 | B4: 4100638.699
A5: Skema 3 | B5: 358672.003
A6: Skema 4 | B6: 0
A7: Skema 5 | B7: 0
A8: Skema 6 | B8: 4459310.703
A9: 1+2+3-4-5-6 | B9: =+B3+B4+B5-B6-B7-B8 -> -0.0007536001503

Sheet Afstemning øvrige region
A1: Afstemning af Øvrige i Region Sjælland
A2: 1.000 kr. | B2: 2023
A3: Skema 1 | B3: 0
A4: Skema 2 | B4: 0
A5: Skema 3 | B5: 0
A6: Skema 4 | B6: 0
A7: Skema 5 | B7: 0
A8: Skema 6 | B8: 0
A9: 1+2+3-4-5-6 | B9: =+B3+B4+B5-B6-B7-B8 -> 0
